Workbook

Sheet Welcome and Instructions
A1: Revised 12-8-16
A3: Welcome to the 2017-2018 Career and Technical Education (CTE) Local Plan and Budget Application in Excel. Please use the tabs at the bottom of this spreadsheet to complete the Certification and Assurances, Performance Assessment, and the Career and Technical Education Management System (CTEMS) Schedules 1 - 18. Use your local personal computer to prepare the document for submission to the Virginia Department of Education's (VDOE) Online Management of Education Grant Awards (OMEGA) reporting system.
A5: To print Annual Plan Document, please select this button:
A7: To view the Annual Plan Document by pages, click on "Page Break Preview" under View.
A8: NOTE: For additional instructions on how to submit files in OMEGA, please consult the OMEGA User's Guide at:
A9: http://www.doe.virginia.gov/school_finance/budget/grants_acct_reporting/omega/omega_user_guide.pdf
A10: Or, once you are in OMEGA on the division's opening page, you may click "Help" in the top right sidebar, and the first paragraph has the link to the OMEGA User's Guide. Additionally, you may e-mail questions or concerns regarding OMEGA by clicking on "OMEGA SUPPORT" in the top right sidebar. You may also contact OMEGA Support directly at
A11: 804-371-0993 or e-mail them directly at | G11: Omega.Support@doe.virginia.gov
A12: For questions concerning the CTE Local Plan and Budget Application, please contact George Willcox, Associate Director, or Bill Hatch, Coordinator, CTE Planning, Adminsitration and Accountability, as assigned in Appendix A, at (804) 786-4206
A13: or | B13: CTE@doe.virginia.gov | G13: Do NOT contact OMEGA Support.
A15: Introduction
A16: The Carl D. Perkins Career and Technical Education Act of 2006 (referenced from this point on as the "Perkins Act" or "Perkins IV") requires that each eligible recipient develop and implement a Local Plan for Career and Technical Education that includes specific information in the following three areas:
B17: 1. program and services,
B18: 2. required uses of funds, and
B19: 3. permissible uses of funds.
A20: In an effort to reduce or eliminate redundancy as you respond to the Perkins Act, each requirement is dealt with on a separate schedule. A text box is provided for you to enter comments, additional categories, or narratives needed to describe or explain a particular program. Please follow the specific instructions listed for each schedule.
A21: To be eligible for CTE funding, school divisions must complete the appropriate schedules and include certifications of compliance with all statements of assurance and all conditions. The schedules provided are designed to set forth the proposed career and technical education programs, services, and activities to be funded. The local application for career and technical education funds must be submitted through the Single Sign-On for Web Systems (SSWS) via the OMEGA reporting system (NOTE: As well as 2003 Excel .xls files, OMEGA will now support uploading 2007 and 2010 Excel .xlsx or .xlsm formatted files. If you experience any problems, please contact OMEGA Support.)
A22: CTE Local Plan Due Date
A23: In compliance with | E23: federal requirements | H23: the school division must submit its application to
A24: the VDOE in "substantially approvable form" via OMEGA not later than April 28, 2017. In order to obligate Perkins funds on July 1, 2017, school divisions must adhere to the submission due date.
A26: Federal Grants
B27: Under the provisions of the Perkins Act, all federal grants, as provided from the Basic Grant of the Perkins Act, must be distributed by formula. Application for this grant is made through the Career and Technical Education Management System (CTEMS) and meets all necessary conditions and assurances related to the use of these funds.
A30: Basis for Determining 2017-2018 Perkins Grants to Local Education Agency (LEA)
B31: Grants made to local education agencies are determined by the following formula:
C33: Thirty (30) percent shall be allocated to such local educational agencies in proportion to the number of individuals in grades 9 through 12 (ages 15-19), inclusive, who reside in the school division served by such local education agency for the preceding fiscal year compared to the total number of such individuals who reside in the school divisions served by all local educational agencies in the state for such preceding fiscal year.
C34: Seventy (70) percent shall be allocated to such local educational agencies in proportion to the Census Bureau's estimate of the relative number of children in poverty aged 5 through 17, inclusive, who reside in the school division served by such local educational agency compared to the total number of such individuals who reside in the school divisions served by all local educational agencies in the state for the most recent Census Bureau estimate.
A36: Appropriate Use of Federal Funds (See Appendix B.)
B37: Section 135. Local Uses of Funds
A39: (a) | B39: General Authority - Each eligible recipient receiving funds under this part shall use such funds to improve career and technical education programs.
A41: Program Improvement
B42: As in prior Perkins Acts, Perkins IV does not identify "program improvement" nor was the past definition, in Perkins I, repealed; thus we must refer to previous legislation for a definition and guidance. In the August 14, 1992, Federal Register Part III 34 CFR Part 400, et al.: State Vocational and Applied Technology Education Programs and National Discretionary Programs of Vocational Education: Final Rule; Appendix A-Analysis of Comments and Changes, Part 403-State Vocational and Applied Technology Education Program, pages 36826-36827, you will find the Section titled "Improving Vocational Education" followed by "Comments and Discussion."
B43: The following statement appears under the discussion caption: "The Secretary believes that a State and its eligible recipients should have the flexibility to determine how funds awarded under 403.112, 403.113, or 403.116 will be used to 'improve' career and technical education programs for their students. The Secretary does not believe that it is possible to develop a definition of 'program improvement' that would apply in all cases. Thus, while a State is free to use the guidelines provided in the previous regulations implementing the previous act, they are not required to do so."
B44: Note. As a state agency, Virginia will allow funding for projects, services, or activities beyond three years as long as all Perkins performance standards are showing state-defined continuous improvement: meet, or exceed the adjusted state-level performance standards. If any of the Perkins performance standards fail to show continuous improvement, then school divisions may not utilize Perkins funds for more than three years on any project, service, or activity unless there are justifiable special circumstances. Justification to extend funding beyond the third year on any project, service or activity that failed to show continuous improvement must be submitted to the Office of Career, Technical, and Adult Education prior to further implementation.
B45: The three years began with 2006 - 2007, the initial year of the Perkins IV Act or the year of the project, service or activity's inception, whichever is the later date.
A46: Funds for Administration of the Federal Grant Award
B47: Up to five percent of the total federal grant award may be used to administer activities to carry out purposes of the Perkins Act. In addition, funds may be expended to purchase equipment used for administrative purposes, such as microcomputers.
A52: SPECIAL NOTES
A54: 1 | B54: Allocations for completing the local budget: Use your current year allocation to complete the local budget part of this application. Once the VDOE receives the new allocations for the next school year from the U.S. Department of Education, school divisions will be notified by a Superintendent's Memorandum. If you have already submitted your CTE Local Plan and Budget Application prior to the final allocation, you will need to revise your budget and Budget Worksheet.
A55: 2 | B55: Review of Local Plan and Budget Applications. Please see the list in Appendix A of these directions to determine who will be reviewing your plan at the VDOE. If you have questions, please contact the appropriate CTE staff.
A56: 3 | B56: Required and Permissive Uses of Perkins Funds: School divisions must use 60 percent or more on Required Uses of Funds. Virginia allows up to 40 percent of your total Perkins allocation for Permissive Uses of Funds. Both Required and Permissive Uses of Funds are designated by the Perkins Act (refer to Appendix B). If you have questions, please contact the appropriate CTE staff.
A57: 4 | B57: Expenditure Account Descriptions: Be sure to use Appendix C for accurate assignment of expenditures in the budget segment of your application.
A58: 5 | B58: DO NOT Round Budget Amounts: In the application, the budget total must match the federal allocation exactly. Do not round budget amounts.
A59: 6 | B59: Regional Career and Technical Centers: Complete the Local Plan using the schedules identified on the CTEMS Schedules Checklist tab. NOTE: Effective School Year 2015-2016 and thereafter, regional technical center administrators must obtain from each participating school division the amount of Perkins funding that will be allocated for center use. This total funding amount from all participating school divisions will be used to complete Schedule 17.
A60: 7 | B60: Accountability Report: An accountability report will be required at the end of the fiscal period to report actual financial data for items included on CTEMS Schedules 16 and 17 and to report equipment items purchased in whole or in part with federal funds.
A61: 8 | B61: Prior-Year Data: Use prior-year data for projecting 2017-2018 state or federal funding in the following categories:
B62: Standards of Quality (SOQ) Add-on | I62: Adult Occupation Supplements
B63: Federal Grants | I63: Adult Occupation Teachers, Full-time
B64: Extended Contracts | I64: Adult Occupation Teachers, Part-time
B65: CTE Center Administrators
B66: (Principals and Assistant Principals)
A68: 9 | B68: New Programs/Courses. The Application for New CTE Programs/Courses is reported outside of the OMEGA system and is located at and may be downloaded from:
B69: http://www.doe.virginia.gov/instruction/career_technical/administration/index.shtml
A70: 10 | B70: Reserve Fund: The Virginia Department of Education has revised its procedures for the redistribution of Perkins carryover funds to require that such funds be transferred from the Local Formula Distribution, Secondary Programs - Project Code: 61095 and moved to the Reserve, Secondary Programs – Project Code: 61159. The reserve funds will be reallocated equitably to school divisions which have used 100 percent of their initial school year Perkins allocation with reallocation priority focused on industry credentialing initiatives and innovative CTE program implementation. Effective August 27, 2015, and thereafter, the reserve funds information is included in the local school divisions Perkins plan application template. Also, the reserve funds guidance has been posted on the CTE Program Administration and Management Web site.
A73: SPECIFIC DIRECTIONS FOR COMPLETING THE LOCAL YEAR PLAN FOR CAREER AND TECHNICAL EDUCATION FUNDS
A74: NOTE: When using hyperlinks, you may return to your original schedule by clicking the tab where you were working at the bottom of this screen.
A75: 1 | B75: CERTIFICATIONS AND ASSURANCES
B76: Use the drop-down menu to choose your school division and division number. Complete all other requested information and obtain signatures. The original Certification and Assurances page(s) with appropriate signatures must be retained and filed at the local level. A copy of the signed Certification and Assurances page(s) must be faxed to the Office of Career ad Technical Education at 804-530-4560.
B77: For assistance in obtaining access to OMEGA, (User Permission Form for School Divisions - OP1), the OMEGA User's Guide, and requirements for application submission, please refer to the OMEGA information page at:
C78: http://www.doe.virginia.gov/school_finance/budget/grants_acct_reporting/omega/index.shtml
A81: 2 | B81: PERFORMANCE ASSESSMENT REPORT
B82: Complete all required information. This section replaced the Local Improvement Plan as of the 2007 - 2008 school year. Performance standards that are not met must be addressed within the schedules of the plan and the budget.
A84: 3 | B84: CTEMS SCHEDULES
B85: To ensure compliance with provisions of the Perkins Act, you must provide descriptions of CTE services in the schedules as appropriate. Please indicate in narrative format, where required, your division's practices, policies, and plans. The CTEMS Schedule Checklist tab may be used to move between schedules.
A87: Schedules 1 and 2
B88: Stakeholder/Advisory Committee Participation/Involvement. Describe your local process for involving the required groups in the development, implementation, and evaluation of CTE programs. NOTE: Effective school year 2015-2016 and thereafter, a minimum of three business and industry representatives must be listed representing three different program areas.
A89: Schedule 3
B90: Application for Local Career Cluster/Pathway Plans of Study. As of school year 2012-2103 and thereafter, all divisions shall implement at least one or more Career Pathway Plans of Study representing at least three or more corresponding Career Clusters. However, to ensure your division’s previous Plans of Study (submitted over the past 8 years) are preparing students to meet local, regional, and state economic and workforce needs, you are advised to review and revise each as necessary. Please e-mail a Microsoft Word file of your completed 2017-2018 Plan of Study to CTE@doe.virginia.gov for separate approval.
A91: Schedule 4
B92: Special Populations Report. List the number of individuals eligible for services provided by the school division in each of the following special populations: economically disadvantaged (K-12), disabled (K-12), limited English proficient/English language learners (K-12), migrant students (K-12), single parents (7-12), nontraditional--underrepresented gender group (7-12), and displaced homemakers (7-12).
B93: Strategies for Overcoming Access Barriers and Assuring Success for Special Populations. Describe how you will annually review CTE programs and implement strategies to overcome barriers that result in lowering rates of access to and success in the programs for special populations and provide programs designed to enable the special populations to meet the state adjusted levels of performance.
B94: Non-discrimination Statement. Describe how individuals will not be discriminated against on the basis of their status as members of a special populations
B95: Identification of Services. Check the appropriate services offered for each special population in your division. Please note that child-care, special transportation, and special seminars for fathers, teens, e.g., are only available to single-parents, nontraditional, and displaced homemaker students.
A97: Schedule 5
B98: Strengthen/Improve Academic and Technical Skills. Indicate in the program area checklist activities for school year 2017-2018 that are intended to strengthen and improve the academic and technical skills of participating students. Complete the narrative.
A99: Schedule 6
B100: All Aspects of Industry. Indicate in the program area checklist activities for school year 2017-2018 that are intended to provide students with experience in and understanding of all aspects of industry. Complete the narrative.
A101: Schedule 7
B102: Technology in Career and Technical Education. Indicate in the program area checklist activities for school year 2017-2018 that are intended to develop, improve, or expand the use of technology in CTE. Complete the narrative.
A103: Schedule 8
B104: Professional Development. Indicate in the program area checklist activities for school year 2017-2018 that are intended to provide professional development to teachers, career/school counselors, and administrators associated with any of your CTE programs. Also, in the second program area checklist, indicate the number of teachers who will be participating in professional development activities. Complete the narratives.
A105: Schedule 9
B106: Evaluation of Career and Technical Education Programs. Describe how the state system of Performance Standards and Measures will be used to develop, evaluate, and continuously improve the performance of CTE programs, including an assessment of how the needs of special populations are being met.
A107: Schedule 10
B108: Improvement, Expansion, and Modernization. Indicate in the program area checklist activities for school year 2017-2018 that are intended to initiate, improve, expand and modernize quality career and technical education programs. Complete the narrative.
A109: Schedule 11
B110: Using Data to Improve Career and Technical Education. Describe how you will use the data provided for your school division on the State System of Performance Standards and Measures to improve CTE.
A111: Schedule 12
B112: Secondary/Postsecondary Linkages. Identify and provide details (where applicable) for school year 2017-2018 activities implemented to facilitate linkage between and transition from secondary to postsecondary programs. Career and Academic Counseling. Describe how the career guidance system provides employment counseling to furnish information on available employment opportunities to all students, including students who are disabled. Placement Services and Job-Seeking Skills. Describe placement services provided for all students exiting school. Describe how job-seeking skills are provided to all secondary students including those identified as disabled.
A113: Schedule 13
B114: Equity Provisions of General Education Provision Act. Describe steps that will be taken to ensure equitable access to, and equitable participation in the project or activity to be conducted with such assistance by addressing the special needs of students, teachers, and other program beneficiaries in order to overcome barriers to equitable participation, including barriers based on race, sex, color, national origin, religion, sexual orientation, gender identity, age, political affiliation, or against otherwise qualified persons with disabilities. The policy specifically prohibits descrimination against veterans.
A115: Schedule 14
B116: Labor Market Needs. Describe how labor market needs are reviewed and addressed to ensure programs and courses offered meet local, regional, and state economic and workforce needs.
A119: Schedule 15
B120: Participation in Regional Career and Technical Education Centers. (Only to be completed by school divisions participating in regional CTE centers that serve multiple divisions.)
B121: Column A: Total CTE Students in School Division
C122: Indicate the total number of students enrolled in CTE classes in your division. This should include students paticipating/enrolled in courses at the home school and in the regional technical center. This should be an unduplicated count. Add to your unduplicated count the number of students attending class at a regional technical center. Use current year data.
B123: Column B: Number of CTE Students Enrolled in Courses in Regional CTE Technical Center
C124: Indicate the number of students from your divisions participating in regional technical center. Use current year data.
B125: Column C: Percent of CTE Students
C126: Divide the number in Column B by the number in Column A. Once Columns A and B are completed, the calculation is automatically programmed for Column C.
B127: Column D: Amount of Perkins Funds to be Sent to the CTE Regional Technical Center
C128: The amount of Perkins funding in Column D must equal the percentage identified in Column C. (Multiply total Perkins funding allocation times percentage in Column C.) NOTE: Each school division that participates in a CTE Regional Technical Center must notify the center administrator of the amount of Perkins funding identified in Column D that will be allocated to the center.
A130: Schedule 15-A
B131: CTE Regional Technical Center Funding. To be completed by CTE Regional Technical Centers only.)
C133: List each school division that participates in the regional center including the Perkins Funding allocated to the center.
A135: Schedule 16
B136: Career and Technical Education Financial Data
C137: Administration (State and Local Funds)
C138: Lines 1 and 2: Principals and Assistant Principals
D139: Indicate the TOTAL PROJECTED COSTS of CTE center administrators (principals and assistant principals) by category. Indicate projected state and local for each.
C140: Extended Contracts, Adult Supplements, and Local Funds. (Documentation of local funds provides needed information for maintenance of effort by the locality.)
C141: Line 3: Extended Contracts
D142: Indicate the PROJECTED TOTAL costs, by state and local projected expenditures, for extended contracts (11-month, 12-month, and other) in all CTE program areas.
C143: Line 4: Adult Occupation Supplements
D144: Indicate the PROJECTED TOTAL costs, by state and local projected expenditures, for adult supplements.
C145: Line 5: Adult Occupation Teachers (Full-time)
D146: Indicate the PROJECTED TOTAL costs, by state and local projected expenditures, for all full-time adult teachers.
C147: Line 6: Adult Occupation Teachers (Part-time)
D148: Indicate the PROJECTED TOTAL costs, by state and local projected expenditures, for all part-time adult teachers.
C149: Line 7: Operational Costs (Local Funds Only)
D150: Indicate the PROJECTED TOTAL local expenditures for salaries. Do not include extended contract supplements.
C151: Line 8: Instructional Supplies and Materials (Local Funds Only)
D152: Indicate the PROJECTED TOTAL local expenditures for instructional supplies and materials.
C153: Line 9: Other Instructionally Related Costs (Local Funds Only)
D154: Indicate the PROJECTED TOTAL local expenditures for other instructionally related costs.
C155: Line 10: Equipment (Local funds Only)
D156: Indicate the PROJECTED TOTAL local expenditures for equipment. Localities must meet the state maintenance of effort for equipment.
B158: Schedule 17
B159: Budget of Perkins Funds
B160: The Perkins Act contains the following statement in Section 135 (a):
C161: General Authority - Each eligible recipient that receives funds under this part shall use such funds to improve career and technical education programs.
B162: -1 | C162: In Column 1, indicate required or permissive funds and the funding requirement code under required or permissive for which expenditures are planned using federal funds. Use the arrow above the pop-up message to access the drop-down menu to choose codes. A link in the Column heading will take you to Appendix B of the Instructions for code explanations. A locality must fund professional development, activities to prepare special populations, and one or more additional required uses of funds before permissive items can be funded. Warning: The total amount for permissive items may not exceed 40 percent of the total federal grant (a note will appear if you exceed the 40 percent).
B163: -2 | C163: In Column 2, use the drop-down menu to indicate the name of the program area for which expenditures are planned using federal funds. "All" is an option.
B164: -3 | C164: In Column 3, describe how the expenditure will assist your division in continuously improving the academic and technical skills of students participating in career and technical education programs and in meeting the state levels of performance established under Section 113 of the Perkins Act.
B165: -4 | C165: In Column 4, using the drop-down arrow, identify the object code used for budgeting expenditures.
B166: -5 | C166: In Column 5, using the drop-down arrow, identify the source of funding: FED - Federal, ST - State, or LOC - Local. Fill in the amount for each category identified.
A167: Schedule 18
A168: Administration/Administrative Equipment Funds and Budget Summary Worksheet
B169: Administration and Administrative Equipment
C170: Enter description and amounts to be used for administration of Perkins Act activities, and for the purchase of equipment to be used for administrative purposes, such as microcomputers. Object Code 5000 - a separate line has been provided to list Indirect Costs. The total amount for administration may not exceed five (5) percent of the total federal grant (a note will appear if you exceed the five (5) percent).
B172: Summary Budget Worksheet
C173: The worksheet will automatically classify the federal proposed activities identified on CTEMS Schedule 17 - Budget of Perkins Funds, and Schedule 18 - Administrative and Administrative Equipment, according to the correct expenditure categories on the Summary Budget Worksheet. Refer to Appendix C for Expenditure Accounts Descriptions. The total amount of all expenditure categories must equal the CTEMS Schedule 17 Grand Total.
A175: NOTE: Please coordinate with your finance and/or budget office for the correct placement of budget items into the expenditure categories.
A177: Comments Page
B178: Please use this page for any additional comments you may have on any of the previous schedules. Please identify the schedule number with the comments.
A180: APPENDIX A
A181: LOCAL DIVISION ASSIGNMENTS
A271: APPENDIX B
A272: REQUIRED AND PERMISSIVE USE OF FUNDS
A447: APPENDIX C
A448: EXPENDITURE ACCOUNTS DESCRIPTIONS
A449: These accounts are for budgeting/recording expenditures of the educational agency for activities under its control. Below are definitions of the major expenditure categories. These descriptions provided are examples only. For further clarification on the proper expenditures of funds, contact the grants administrator, Rachel Blanton at 804-225-3349 or
A450: CTE@doe.virginia.gov.

Sheet Certification and Assurances
Q1: <----Identify Version
A2: Virginia Department of Education
A3: Office of Career, Technical, and Adult Education
A5: LOCAL PLAN FOR CAREER AND TECHNICAL EDUCATION (CTE) PERKINS FUNDS 2017-2018
A6: (A copy of this signed form must be faxed to the Office of Career, Technical, and Adult Education at 804-530-4560)
A8: Division and Contact Information - to be Completed by School Division
A9: Division Applicant Name (Legal Name of Agency) | H9: Division | J9: CTE Administrator
A10: HENRICO COUNTY PUBLIC SCHOOLS | H10: Number | I10: =IF(ISBLANK(A10)," ",VLOOKUP(A10,Prefills!A2:B151,2)) -> 43 | J10: Mac Beaton
A11: Mailing Address (Street, City or Town, and Zip Code) | H11: Mailing Address (If different than applicant address)
A12: 3751-C Nine Mile Road, Henrico VA 23223
A14: Phone (ext): | B14: 7811810 | E14: Fax: | F14: 2365705 | H14: Phone (ext): | M14: Fax:
B15: Numbers Only | D15: Ext. | F15: Numbers Only | J15: Numbers Only | L15: Ext. | N15: Numbers Only
E16: E-mail: | F16: mrbeaton@henrico.k12.va.us
A18: Certification
B20: The eligible recipient does hereby certify that the assurances and conditions stipulated in this plan will be complied with in providing programs and activities for career and technical education and that funds will be used as stipulated in the approved plan. The affixed signatures below ceterfy this division will adhere to the requirements and regulations in the CTE Perkins Local Plan sections listed below:
C21: Requirements of the Carl D. Perkins Career and Technical Education Act of 2006. Please note this includes:
D22: · Perkins IV Technical Skills Assessment Certification;
D23: · Certification Regarding Debarment, Suspension, Ineligibility and Voluntary Exclusion - Lower tier Covered Transactions (Conditions - Item 10);
D24: · Certification of Non-Construction and Construction Programs (Conditions - Item 11);
D25: · Disclosure of Lobbying Activities (Conditions - Item 12);
D26: · Coordination of Sample Career Cluster/Pathway Plans of Study and/or Academic Career Plan;*
D27: · Performance Assessment Results (Performance Assessment Tab);
D28: · Stakeholder Participation/Involvement CTEMS Schedule 1 (CTEMS Schedule Tab); and
D29: · Evaluation of Career and Technical Education Programs CTEMS Schedule 8 (CTEMS Schedule Tab).
A32: CTE Local Advisory Chairperson (Signature) | I32: Date
A34: Local Community College Perkins Administrator (Signature)* | I34: Date
A36: Local CTE Administrator (Signature) | I36: Date
A38: School Board Chairperson (Signature) | I38: Date
A40: Division Superintendent (Signature) | I40: Date
B43: School Division: | G43: =$A$10 -> HENRICO COUNTY PUBLIC SCHOOLS | M43: Division Number: | P43: =$I$10 -> 43
A45: Carl D. Perkins Career and Technical Education Act of 2006
A46: Assurances (continued on next page)
A48: 1. | B48: The applicant will provide a career and technical education program that is of such size, scope, and quality to bring about improvement in the quality of career and technical education programs. (Sec. 134(b)6) and (Sec. 135(b)(8)
B50: Size:
B51: a. A minimum of 11 courses in career and technical education is offered in each secondary school. (Standards of Accreditation 8 VAC 20-131-100.B)
B52: Scope:
B53: b. At least three different career and technical education programs, not courses, that prepare students as a career and technical education completer are provided. (Standards of Accreditation 8 VAC 20-131-100.A.1.)
B54: c. Instruction in career and technical exploration is provided in each middle school. (Standards of Accreditation 8 VAC 20-131-90.B)
B55: Quality:
B56: d. Career and technical education programs incorporated into the K through 12 curricula that include:· * Knowledge of careers and all types of employment opportunities including, but not limited to, apprenticeships, entrepreneurship and small business ownership, the military, and the teaching profession, and emphasize the advantages of completing school with marketable skills; * Career exploration opportunities in the middle school grades; and * Competency-based career and technical education programs that integrate academic outcomes, career guidance and job-seeking skills for all secondary students. Programs must be based upon labor market needs and student interest. Career guidance shall include counseling about available employment opportunities and placement services for students exiting school. Each school board shall develop and implement a plan to ensure compliance with the provisions of this subdivision. Such plan shall be developed with the input of area business and industry representatives and local community colleges and shall be submitted to the Superintendent of Public Instruction in accordance with the timelines established by federal law. (Standards of Quality § 22.1-253.13:1. Standard 1.D.3.)
B57: e. Establish the requirements for a standard and an advanced studies high school diploma, which shall each include at least one credit in fine or performing arts or career and technical education and one credit in United States and Virginia history. The requirements for a standard high school diploma shall, however, include at least two sequential electives chosen from a concentration of courses selected from a variety of options that may be planned to ensure the completion of a focused sequence of elective courses. Such focused sequence of elective courses shall provide a foundation for further education or training or preparation for employment. The advanced studies diploma shall be the recommended diploma for students pursuing baccalaureate study. Both the standard and the advanced studies diploma shall prepare students for post-secondary education and the career readiness required by the Commonwealth's economy… . (Standards of Quality § 22.1-253.13:4.D.2.) Note: Beginning with students entering ninth grade for the first time in 2013-2014, a student shall earn a board-approved career and technical education credential to graduate with a Standard Diploma (8VAC 20-131-50).
B58: f. Provide for the award of verified units of credit for passing scores on industry certifications, state licensure examinations, and national occupational competency assessments approved by the Board of Education. School boards shall report annually to the Board of Education the number of Board-approved industry certifications obtained, state licensure examinations passed, national occupational competency assessments passed, Virginia workplace readiness skills assessments passed, and the number of career and technical education completers who graduated. These numbers shall be reported as separate categories on the School Performance Report Card. In addition, the Board may:
B59: i. For the purpose of awarding verified units of credit, approve the use of additional or substitute tests for the correlated Standards of Learning assessment, such as academic achievement tests, industry certifications or state licensure examinations; and
B62: School Division: | G62: =$A$10 -> HENRICO COUNTY PUBLIC SCHOOLS | M62: Division Number: | P62: =$I$10 -> 43
A64: Carl D. Perkins Career and Technical Education Act of 2006
A65: Assurances (continued from previous page)
B67: ii. Permit students completing career and technical education programs designed to enable such students to pass such industry certification examinations or state licensure examinations to be awarded, upon obtaining satisfactory scores on such industry certification or licensure examinations, the appropriate verified units of credit for one or more career and technical education classes into which relevant Standards of Learning for various classes taught at the same level have been integrated. Such industry certification and state licensure examinations may cover relevant Standards of Learning for various required classes and may, at the discretion of the Board, address some Standards of Learning for several required classes. (Standards of Quality § 22.1-253.13:4.D.6.)
A69: 2. | B69: Programs, services, and activities included under this agreement will be operated in accordance with the Carl D. Perkins Career and Technical Education Act of 2006 (Perkins IV) and all applicable Virginia Public School Laws. (8VAC 20-120-10)
A71: 3. | B71: None of the funds made available under this Perkins Act (Perkins IV) will be used to provide funding under the Wagner-Peyser Act and Public Law 105-220. (Sec. 118(d)(1-2))
A73: 4. | B73: The applicant will submit descriptive and statistical reports containing complete, accurate, and reliable data that measure the progress of students, including special populations, as required by Perkins IV, the Education Improvement Act of 1984, and the State Department of Education. (Sec. 122(c)(13))
A75: 5. | B75: Students who participate in career and technical education programs will be taught the same challenging academic proficiencies as all other students. (Sec. 134(b)(3)(D))
A77: 6. | B77: The applicant that receives funds under this part will use such funds to improve career and technical education programs. (Sec. 135(a))
A79: 7. | B79: Funds made available under this Perkins Act for career and technical education activities will supplement and shall not supplant, non-federal funds expended to carry out career and technical education activities. (Sec. 311(a))
A81: 8. | B81: No funds received under the Perkins Act will be used to require any secondary school student to choose or pursue a specific career path or major or to mandate that any individual participate in a career and technical education program, including a career and technical education program that requires the attainment of a federally funded skill level, standard, or certificate of mastery. (Sec. 314)(1))
A83: 9. | B83: No funds received under this Perkins Act will be used to provide career and technical education programs prior to the seventh grade, except that equipment and facilities purchased with funds under this Act may be used by such students. (Sec. 315)
A85: 10. | B85: No funds provided under this Perkins Act will be used for the purpose of directly providing incentives or inducement to employers to relocate a business enterprise from one state to another state if such relocation will result in a reduction in the number of jobs available in the state where the business enterprise is located before such incentives or inducements are offered. (Sec. 322)
A87: 11. | B87: Funds used under this Perkins Act for in-service and pre-service career and technical education professional development programs for career and technical education teachers, administrators, and other personnel may, upon request, permit program participation by career and technical education teachers, administrators, and other personnel in non-profit private schools offering career and technical education programs located in the geographical area served by such agency or recipient. (Sec. 317(a))
A89: 12. | B89: None of the funds expended under Perkins IV will be used to acquire equipment (including computer software) in any instance in which such acquisition results in a direct financial benefit to any organization representing the interest of the purchasing entity, the employees of the purchasing entity, or any affiliate of such an organization. (Sec. 122(c)(12))
A91: 13. | B91: Programs funded under the Perkins Act will be coordinated with the local Workforce Investment Council to avoid duplication with Workforce Investment Act Title I programs, adult education, and other federal training programs (Sec. 118(c)(5)).
A93: 14. | B93: The local school division will use the state-provided career and technical program area competency list identified for each course to provide instruction for students and to rate the student’s level of competency attainment. (8VAC 20-120-120)
B97: School Division: | G97: =$A$10 -> HENRICO COUNTY PUBLIC SCHOOLS | M97: Division Number: | P97: =$I$10 -> 43
A99: Carl D. Perkins Career and Technical Education Act of 2006
A100: Assurances (continued from previous page)
A103: 15. | B103: The local school division shall: a. identify the number of special population students enrolled in career and technical education programs; b. assess the career and technical needs of the students identified as special populations; and c. develop an adequate plan to provide supplementary services sufficient to meet the needs of such students. (Sec 122(c)(13))
A105: 16. | B105: This plan has been developed in consultation with the local career and technical education advisory committee, composed of representatives from business and industry, labor organization, Workforce Investment Council, local community colleges, special populations, teachers, parents, students, and other interested community leaders. In addition, the committee should include appropriate representation of both genders and the racial and ethnic minorities in the school, community, or region. (Sec 134(b)(5)) (8VAC 20-120-50)
A107: 17. | B107: Local programs of career and technical education shall be evaluated annually using the performance standards and measures as approved by the Virginia Board of Education, and in compliance with the requirements of Section 113 of the Carl D. Perkins Career and Technical Education Act of 2006. (Sec. 122(c)(8))
A109: 18. | B109: Equal opportunities in career and technical education programs will be provided to persons and without discrimination based on gender, race, color, national origin, religion, age, political affiliation, veteran status, persons with disabilities, and equal access to the Boy Scouts and other designated youth groups. (Sec. 134) (8VAC 20-120-100) (See 34 CFR Sections 100-6(d), 106.9, 104.8, 110.25, and 108.9)
A111: 19. | B111: Statistical, financial, and descriptive reports and data required by the Virginia Board of Education and/or the Virginia Department of Education with regard to career and technical education programs will be submitted as requested and within the specified timelines. (8VAC 20-120-70)
A113: 20. | B113: Procedures are in place to ensure that lists of essential competencies that are modified for students with Individualized Education Programs (IEPs) or Section 504 plans must, as a group, be selected so that student attainment of the modified list of essential competencies prepare the student for a job or occupation. (Sec. 122(c)(8)) (8VAC 20-120-130)
A115: 21. | B115: Career and technical services, programs, and activities will reflect labor market needs and student interest. (8VAC 20-120-110)
A117: 22. | B117: Career and technical student organizations will be an integral and active part of each career and technical program. (8VAC 20-120-160(B))
A119: 23. | B119: The local plan has been approved by the school board and will be implemented upon approval of the Virginia Department of Education. (8VAC 20-120-10)
A120: 24. | B120: The school division will conduct a comprehensive self-assessment of the career and technical education program. If applicable, the school division will develop a plan of action to address each unmet requirement and assure timely implementation of the plan. The CTE Federal Program Monitoring Review system requires school divisions to review the CTE program on a six-year cyclical schedule. If applicable, school divisions must complete a comprehensive self-assessment instrument and submit in conjunction with the CTE Local Plan by April 28, 2017.
B121: (Refer to Superintendent's Memorandum #237-16, dated September 16, 2016)
B124: School Division: | G124: =$A$10 -> HENRICO COUNTY PUBLIC SCHOOLS | M124: Division Number: | P124: =$I$10 -> 43
A126: Conditions
A128: 1. | B128: An inventory of all equipment purchased in whole or part with federal funds provided by the Virginia Board of Education will be maintained, and all such equipment will be available for use by students in the approved career and technical education program for which it was purchased. (8VAC 20-120-80)
A130: 2. | B130: Recipients of federal funding that plan to use any equipment purchased in whole or in part with federal funds provided by the Virginia Board of Education in any program, project or activity other than the one for which it was originally purchased or who planned to dispose of or trade in such equipment must comply with the provisions of Education Department General Administrative Regulations (EDGAR).
A132: 3. | B132: Funds will not be expended in any manner other than as budgeted in the original plan or amended plan (if applicable). In the event funds need to be expended (category or dollar amount) in any manner other than stipulated in this CTEMS plan, the eligible recipient must submit, in writing, a request to amend the CTEMS plan. This request must include an explanation of proposed changes along with a revised copy of Schedules 17 and 18.
A134: 4. | B134: Perkins funds will not be expended prior to the receipt of a letter of approval for the original plan and/or the amended plan (if applicable).
A136: 5. | B136: The local plan shall be for the same period of time as the State Plan submitted under Section 122 (five-year plan).
A138: 6. | B138: The locality will not fund any project, service, or activity for more than three years—the year of its inception and the two following years—unless showing continuous improvement, meeting or exceeding all Perkins performance standards.
A141: 7. | B141: Career and technical education programs will operate consistently with all federal and state requirements and regulations.
A143: 8. | B143: Reports and other information required by the Virginia Board of Education will be submitted within the dates and timelines established, and documentation will be maintained for five years.
A145: 9. | B145: Reimbursement requests from school divisions will not be processed for those school divisions that have outstanding data and/or reports required by federal legislation, state legislation, or the Virginia Board of Education.
A147: 10. | B147: The locality will comply with certification regarding debarment, suspension, ineligibility, and voluntary exclusion – lower tier covered transactions.
A149: 11. | B149: The locality will comply with all applicable assurances in Office of Management and Budget (OMB) Standard Forms 424B and D (Assurances for Non-Construction and Construction Programs), including the assurances relating to the legal authority to apply for assistance; access to records; conflict of interest; merit systems; nondiscrimination; Hatch Act provisions; labor standards; flood hazards; historic preservation; protection of human subjects; animal welfare; lead-based paint; Single Audit Act; and the general agreement to comply with all applicable federal laws, executive orders and regulations.
A151: 12. | B151: With respect to the certification regarding lobbying in Department Form 80-0013, no federal appropriated funds have been paid or will be paid to any person for influencing or attempting to influence an officer or employee of any agency, a Member of Congress, an officer or employee of Congress, or an employee of a Member of Congress in connection with the making or renewal of federal grants under this program; the State will require the full certification, as set forth in 34 CFR Part 82, Appendix A, in the award documents for all subawards at all tiers; and the State will complete and submit Standard Form-LLL, "Disclosure Form to Report Lobbying," when required (34 CFR Part 82, Appendix B).
A153: 13. | B153: The Locality will comply with the following provisions of Education Department General Administrative Regulations (EDGAR), as applicable: 2 CFR Part 200—Uniform Administration Requirements, Cost Principles, and Audit Requirements for Federal Awards; 34 CFR Part 77—Definitions that Apply to Department Regulations; 34 CFR Part 81—General Education Provisions Act—Enforcement; 34 CFR Part 82—New Restrictions on Lobbying.
B157: School Division: | G157: =$A$10 -> HENRICO COUNTY PUBLIC SCHOOLS | M157: Division Number: | P157: =$I$10 -> 43
A160: Perkins IV Technical Skills Assessment Certification (To be submitted annually with Local Plan and Budget Application.)
A163: 1. | B163: I certify that all Career and Technical Education programs in my school division are using the state developed CTE course frameworks to teach essential competencies in each course. It is understood that locally developed competencies may be added as appropriate.
A165: 2. | B165: I certify that the following operational guidelines are being followed in all CTE programs in my school division. a) Competencies are specified to students prior to instruction. b) Competencies include “all aspects of the industry” and “workplace readiness skills.” c) An internal evaluation system (i.e., state supplied Student Competency Record)* is utilized for rating and documenting the competency performance of each student. (Students may be involved in assessing their work, but only a teacher or administrator may rate and document the performance.) *Student Competency Records should be used accordingly: a) Teachers should review the task definitions for each essential task/competency to examine assessment requirements. b) Based on the performance level criteria and task definitions, teachers make independent professional decisions about the performance attainment level of students on each essential competency. c) Grading rubrics should be used where appropriate in skill performance applications. d) Student competency records should be retained in the school division for five years.

Sheet Performance Assessment
B2: School Division: | G2: =T('Certification and Assurances'!$A$10:$G$10) -> HENRICO COUNTY PUBLIC SCHOOLS | M2: Division Number: | P2: ='Certification and Assurances'!$I$10 -> 43
A4: PERFORMANCE ASSESSMENT for 2015-2016
A5: (Annual Submission Required)
B7: The school division's local plan should reflect activities/projects that address Perkins Performance Standards that have not improved or that do not meet the Virginia Agreed Upon Perkins Performance Levels. This information will be used to inform appropriate technical assistance, on-site visits, and/or local Federal Program Monitoring visits.
B9: If a performance standard is not met, the school division must explain why and the actions taken to improve performance on the following page. Once a school division has met the state performance standards, they must maintain or show continuous improvement each year.
B10: Directions: Provide the school division's actual performance levels for 2015-2016 for all completers and special populatons.
B12: Perkins Performance Standards | H12: Virginia Agreed Upon Performance Levels for 2015 - 2016 | K12: 2015 - 2016 Actual Performance from APR
K13: All Completers | M13: Special Populations
B14: 1S1 | C14: Academic Attainment - Reading (English 11) | H14: 0.75 | K14: 0.9958 | M14: 0.9914
B15: 1S2 | C15: Academic Attainment - Mathematics (Highest Level) | H15: 0.75 | K15: 0.9924 | M15: 0.9851
B16: 2S1A | C16: Technical Skills Attainment - Student Competency Rate | H16: 0.9 | K16: 1 | M16: 1
B17: 2S1B | C17: Technical Skills Attainment - Completers Participating in Credentialing Tests | H17: 0.7 | K17: 0.9811 | M17: 0.9735
B18: 2S1C | C18: Technical Skills Attainment - Test Takers (Completers) Passing Credentialing Tests Rate | H18: 0.79 | K18: 0.8996 | M18: 0.8368
B19: 2S1D | C19: Technical Skills Attainment - Completers Passing Credentialing Test Rate* | H19: 0.58 | K19: 0.8826 | M19: 0.8146
B20: 2S1E | C20: Technical Skills Attainment - Completers who passed a credentialing test plus Completers who earned an Advanced Studies Diploma and did not pass a credentialing test | H20: 0.5 | K20: 0.8962 | M20: 0.824
B21: 3S1 | C21: Secondary School Completion | H21: 0.95 | K21: 0.9869
B22: 4S1 | C22: Graduation Rate | H22: 0.92 | K22: 0.9542
B23: 5S1 | C23: Secondary Placement Rate (Transition from Secondary Education to Postsecondary Education, Employment or Military) | H23: 0.92 | K23: 0.9719 | M23: 0.9667
B24: 5S1 | C24: Program Completer Response Rate | H24: 0.75 | K24: 0.7796
B25: 6S1 | C25: Nontraditional Career Preparation Enrollment | H25: 0.3 | K25: 0.3504
B26: 6S2 | C26: Nontraditional Career Preparation Completion | H26: 0.26 | K26: 0.3254
B27: ** EOC - End-of-Course
B30: School Division: | G30: =T('Certification and Assurances'!$A$10:$G$10) -> HENRICO COUNTY PUBLIC SCHOOLS | M30: Division Number: | P30: ='Certification and Assurances'!$I$10 -> 43
A33: PERFORMANCE ASSESSMENT
A34: (Continued from previous page)
B37: The Annual Performance Report (APR) for your school division is available at
B38: http://www.doe.virginia.gov/instruction/career_technical/statistics_reports/index.shtml
B40: 1. How many performance standard(s)/element(s) were not met for first time. | M40: 0
B41: Select the performance standard(s) not met from the drop down menu below (click in box - menu will open). Explain why each standard was not met.
B47: 2. How many performance standard(s)/element(s) were not met for two consecutive years. | M47: 0
B48: Select the performance standard(s) not met from the drop down menu below (click in box - menu will open). Explain why each standard was not met and what action was taken in prior years to improve the performance.
B54: 3. How many performance standard(s)/element(s) were not met for three consecutive years. | M54: 0
B55: Select the performance standard(s) not met from the drop down menu below (click in box - menu will open). Explain why each standard was not met and what action was taken in prior years to improve the performance.
B61: School Division: | G61: =T('Certification and Assurances'!$A$10:$G$10) -> HENRICO COUNTY PUBLIC SCHOOLS | M61: Division Number: | P61: ='Certification and Assurances'!$I$10 -> 43
A64: 2016-2017 PERFORMANCE ASSESSMENT TARGETS
B66: School divisions are required to meet or exceed the Virginia Agreed Upon Perfomance Levels. For your information, the following chart provides the list of Perkins Core Indicators of Performance, the 2016-2017 state (negotiated) agreed upon levels of performance, and the data collection sources. For more detailed information, refer to CTE Memo No. 105-16, dated August 18, 2016.
B69: Perkins Core Indicator of Performance | H69: Virginia Agreed Upon Performance Levels for 2016 - 2017 | K69: Data Collection Source
B71: 1S1* | C71: Academic Attainment - Reading (English 11) | H71: 0.8 | K71: **EOC Standard of Learning Test Scores
B72: 1S2* | C72: Academic Attainment - Mathematics (Highest Level) | H72: 0.8 | K72: **EOC Standard of Learning Test Scores
B73: 2S1A | C73: Technical Skills Attainment - Student Competency Rate | H73: 0.91 | K73: Final Completer Demographics Report (CDR) and Career and Technical Education Credential Collection (CTECC)
B74: 2S1B | C74: Technical Skills Attainment - Completers Participating in Credentialing Tests | H74: 0.8
B75: 2S1C | C75: Technical Skills Attainment - Test Takers (Completers) Passing Credentialing Tests Rate | H75: 0.8
B76: 2S1D | C76: Technical Skills Attainment - Completers Passing Credentialing Test Rate | H76: 0.72
B77: 2S1E | C77: Technical Skills Attainment - Completers who passed a credentialing test plus Completers who earned an Advanced Studies Diploma and did not pass a credentialing test | H77: 0.75
C78: Information Indicator - Completers who earned an Advanced Studies Diploma and passed a credentialing test | H78: Not Applicable
B79: 3S1 | C79: Secondary School Completion | H79: 0.96 | K79: Final Completer Demographics Report (CDR) and End-of-Year Student Record Collection Drop-out Report
B80: 4S1 | C80: Graduation Rate | H80: 0.93 | K80: Final Completer Demographics Report (CDR)
B81: 5S1 | C81: Secondary Placement Rate (Transition from Secondary Education to Postsecondary Education, Employment or Military) | H81: 0.93 | K81: CTE Follow-up Survey of Program Completers
B82: 5S1 | C82: Program Completer Response Rate | H82: 0.75 | K82: CTE Follow-up Survey of Program Completers
B83: 6S1 | C83: Nontraditional Career Preparation Enrollment | H83: 0.31 | K83: Secondary Enrollment Demographics Form (SEDF)
B84: 6S2 | C84: Nontraditional Career Preparation Completion | H84: 0.27 | K84: Final Completer Demographics Report (CDR)
B85: * Based on Virginia’s Annual Measurable Objectives (AMO) for all students under the ESEA Act, flexibility waivers were granted by USDOE in March 2013. Reading – Calculated based on results of the new statewide reading assessments administered for the first time during the 2012-2013 school year. Mathematics – Calculated in fall 2012 based on results of new statewide mathematics assessments administered for the first time during the 2011-2012 school year. In July 2014, USDOE approved the extension of Virginia’s ESEA flexibility waiver based on revised methodology.
B86: ** EOC - End-of-Course

Sheet CTEMS Schedules Checklist
B2: School Division: | G2: =T('Certification and Assurances'!$A$10:$G$10) -> HENRICO COUNTY PUBLIC SCHOOLS | M2: Division Number: | P2: ='Certification and Assurances'!$I$10 -> 43
A5: CTEMS CHECKLIST
A6: 2017-2018
A8: 1. | B8: CTEMS Schedules Required for School Divisions and Regional Centers (All Schedules are required.)
C10: Schedule 1 - Stakeholder Participation/Involvement | J10: Schedule 10 - Improvement, Expansion, and Modernization
C11: Schedule 2 - Advisory Committee Participation/Involvement | J11: Schedule 11 - Using Data to Improve Career and Technical Education
C12: Schedule 3 - Application for Local Career Cluster/Pathway Plans of Study | J12: Schedule 12 - Secondary/Postsecondary Linkages, Employment Counseling, and Placement Services
C13: Schedule 4 - Special Populations Report | J13: Schedule 13 - Equity Provisions of General Education Provision Act
C14: Schedule 5 - Strengthen/Improve Academic and Technical Skills | J14: Schedule 14 - Labor Market Needs
C15: Schedule 6 - All Aspects of Industry | J15: Schedule 15 - Participation in Regional Technical Education Programs
C16: Schedule 7 - Technology in Career and Technical Education | J16: Schedule 16 - Career and Technical Education Financial Data
C17: Schedule 8 - Professional Development Provided | J17: Schedule 17 - Budget of Perkins Funds
C18: Schedule 9 - Evaluation of Career and Technical Education Programs | J18: Schedule 18 - Administration/Administrative Equipment Funds and Budget Summary Worksheet

Sheet CTEMS Schedules
B2: School Division: | G2: =T('Certification and Assurances'!$A$10:$G$10) -> HENRICO COUNTY PUBLIC SCHOOLS | M2: Division Number: | P2: ='Certification and Assurances'!$I$10 -> 43
A5: CTEMS SCHEDULE 1
A6: Stakeholder Participation/Involvement
A7: 2017-2018 Plan
B9: Section 134(a): The local plan shall be for the same period of time as the State Plan submitted under Section 122. Please check the types of involvement each of the groups below have had in the development of your local plan. Section 134(b)(5): Describe how parents, students, academic and career and technical education teachers, faculty, administrators, career guidance and academic counselors, representatives of tech prep consortia (if applicable), representatives of the entities participating in activities described in Section 117 of Public Law 105-220 (if applicable), representatives of business (including small business) and industry, labor organizations, representatives of special populations, and other interested individuals are involved in the development, implementation, and evaluation of career and technical education programs assisted under this Act, and how such individuals and entities are effectively informed about, and assisted in understanding the requirements of this title, including career and technical programs of study.
J11: supplied information | K11: provided substantive consultation | L11: reviewed and critiqued the plan or sections | M11: of the plan
B12: Representatives of business/industry | J12: X | L12: X
B13: Representatives of business/industry | J13: X | K13: X | L13: X
B14: Representatives of business/industry | J14: X | K14: X | L14: X
B15: Representatives of labor organization | J15: X | L15: X
B16: Representatives of Workforce Investment Council | J16: X | K16: X | M16: X
B17: Community representatives and other interested individuals | J17: X | K17: X | L17: X
B18: Representatives of special populations | J18: X | L18: X
B19: Representatives of local community colleges | J19: X | L19: X
B20: Teachers | J20: X | L20: X
B21: Parents | J21: X | L21: X
B22: Students | J22: X | L22: X
B25: Describe how the required respective groups were involved in the development, implementation, and evaluation of your career and technical programs utilizing data from prior year(s) and/or any local evaluations that may have been conducted during the 2016-2017 school year.
B26: The respecitive groups reviewed the local plan and assisted in its development as indicated above. They consulted on exiting programs, consulted on new programs, reviewed information provided by staff, made recommendations for program improvement, and presented updates and reports to the School Board and other Central Office personnel. Business and Industry prepresentatives formally and informally reviewed the following: performance data, enrollment data, budget information, program updates provided by staff, and student/employer follow-up information. They determined strenghts and weaknesses of programs and made program improvement recommendations. The Business Council serves as the Advisory Council for HCPS in order to better reflect the involvement of businesses and our partnership with them to enhance the CTE programs in Henrico Co. Public Schools.
B30: School Division: | G30: =T('Certification and Assurances'!$A$10:$G$10) -> HENRICO COUNTY PUBLIC SCHOOLS | M30: Division Number: | P30: ='Certification and Assurances'!$I$10 -> 43
A33: CTEMS SCHEDULE 2
A34: Advisory Committee Participation/Involvement
A35: 2017-2018 Plan
B37: The local advisory committee for CTE must be involved in the development, implementation, and evaluation of CTE programs. The advisory committee, which meets regularly, is a group of persons representing business and industry, labor organization, Workforce Investment Council, special populatons, local community colleges, teachers, parents, students, and other interested community leaders for the purpose of providing recommendations, direction, and assistance to CTE. Other persons may be invited to participate at the discretion of the eligible recipient. Ex-officio members should include the CTE administrator. This schedule must provide a list of the names of the stakeholders indicated on Schedule 1 that contribute to the development of the local Perkins plan. List below only one individual from each category (with the exception of business and industry, which must list three-one for each of three different career and technical education programs) on the local advisory committee who have been appointed to serve in the development, implementation, and evaluation of CTE programs. Additional members may be listed on the Comments Page of this application following Schedule 18.
B39: Group ID Letter: | D39: P | E39: : Parents | H39: B&I | I39: : Business and Industry (3 minimum)
D40: S | E40: : Students | H40: CC | I40: : Local Community College
D41: T | E41: : Teachers | H41: SP | I41: : Special Populations
D42: L W | E42: : Labor Organization : Workforce Investment Council | H42: O | I42: : Community Representative/Other Interested Individuals
B44: NAME/TITLE OR POSITION | H44: NAME OF COMPANY/BUSINESS/ORGANIZATION | N44: GROUP ID LETTER
B45: Riggs, William H. | H45: Parent | N45: P
B46: Terryn Granett | H46: Hermitage ACE Center | N46: S
B47: Mark Schultz | H47: Hermitage ACE Center | N47: T
B48: Brooks, Susan | H48: KSB, Inc | N48: L
B49: Maxwell, Robert | H49: Minute Man Press | N49: B&I
B50: Winn Andrews | H50: J. Sargeant Reynolds Community College | N50: CC
B51: Hopkins, Margaret | H51: Teacher, Henrico Co. Public Schools | N51: SP
B52: Frank Thornton | H52: Henrico Co. Division of Police | N52: O
B53: Brian K. Davis | H53: Capitol Region Workforce Partnership & Workforce Development Board | N53: W
B54: Joe Crawley | H54: Inussi Marketing | N54: B&I
B55: Charles Tilley | H55: BCWH | N55: B&I
B57: Describe how members of the CTE advisory committee and the stakeholder participants involved in the development of the plan are annually informed about and assist in the understanding of the Act, and list activities planned in which the stakeholders will be involved for the 2017-2018 school year.
B58: Involvement in the development of the plan is done on a continuous basis throughout the school year. Information is shared/requested at regularly scheduled Business Council meetings. School counselors and CTE specialists consult with students who are currently enrolled in CTE classes and with students who may be new to CTE programs. Presentations at school board meetings, student recognition programs, and parents/students involved in CTE competitions receive informatoin in regard to the Carl Perkins Act.
B63: School Division: | G63: =T('Certification and Assurances'!$A$10:$G$10) -> HENRICO COUNTY PUBLIC SCHOOLS | M63: Division Number: | P63: ='Certification and Assurances'!$I$10 -> 43
A66: CTEMS SCHEDULE 3
A67: Application for Local Career Cluster/Pathway Plans of Study
A68: 2017-2018 Plan
A70: INSTRUCTIONS/PROCEDURES
A72: Assistance for completing CTE Career Cluster/Pathway Plans of Study may be found at:
A73: http://www.doe.virginia.gov/instruction/career_technical/career_clusters/index.shtml
A75: Effective school year 2013-2014 and beyond, beginning in middle school, all students shall have an Academic and Career Plan that is reviewed before a student enters the ninth and eleventh grades (8VAC 20-131-140).
A77: Assistance for completing Academic and Career Plans may be found at :
A78: http://www.doe.virginia.gov/instruction/graduation/academic_career_plan.shtml
A80: As of school year 2012-2103 and thereafter, all divisions shall implement at least one or more Career Pathway Plans of Study representing at least three or more corresponding Career Clusters (Section 134(b)(3)(A). However, to ensure your division’s previous Plans of Study (submitted over the past 9 years) are preparing students to meet local, regional, and state economic and workforce needs, you are advised to review and revise each as necessary. Please e-mail a Microsoft Word file of your completed 2017-2018 Plan of Study to CTE@doe.virginia.gov for separate approval.
A82: LIST ALL PREVIOUSLY APPROVED PLANS OF STUDY
A84: CLUSTER | F84: PATHWAY | L84: YEAR SUBMITTED | N84: LOCAL OR STATE TEMPLATE (Please indicate which is being used.)
A85: Architecture & Construction | F85: Construction-Architecture and Construction | L85: 2007-2008 | N85: State
A86: Science, Technology, Engineering, & Mathematics | F86: Engineering and Technology-Science, Technology, Engineering and Mathematics | L86: 2007-2008 | N86: State
A87: Education & Training | F87: Teaching/Training-Education and Training | L87: 2008-2009 | N87: State
A88: Information Technology | F88: Web and Digital Communications-Information Technology | L88: 2008-2009 | N88: State
A89: Information Technology | F89: Programming and Software Development-Information Technology | L89: 2008-2009 | N89: State
A90: Information Technology | F90: Information Support and Services-Information Technology | L90: 2009-2010 | N90: State
A91: Transportation, Distribution, & Logistics | F91: Facility and Mobile Equipment Maintenance-Transportation, Distribution and Logistics | L91: 2009-2010 | N91: State
A92: Human Services | F92: Early Childhood Development and Services-Human Services | L92: 2010-2011 | N92: State
A93: Finance | F93: Accounting-Finance | L93: 2012-2013 | N93: State
A94: Hospitality & Tourism | F94: Restaurants and Food/Beverage Services-Hospitality and Tourism | L94: 2013-2014 | N94: State
A95: Health Science | F95: Therapeutic Services-Health Science | L95: 2014-2015 | N95: State
A96: Information Technology | F96: Programming and Software Development-Information Technology | L96: 2015-2016 | N96: State
A97: Health Science | F97: Therapeutic Services-Health Science | L97: 2016-2017 | N97: State
B110: School Division: | G110: =T('Certification and Assurances'!$A$10:$G$10) -> HENRICO COUNTY PUBLIC SCHOOLS | M110: Division Number: | P110: ='Certification and Assurances'!$I$10 -> 43
A111: Application for Local Career Cluster/Pathway Plans of Study
A112: 2017-2018 Plan
A113: Please e-mail a Microsoft Word file of your completed 2017-2018 Career Cluster/Pathway Plan of Study template to CTE@doe.virginia.gov for separate approval.
A114: PLANS OF STUDY SUBMITTED FOR 2017-2018 LOCAL PLAN
A116: CLUSTER for 2017-2018 Year | F116: PATHWAY | N116: LOCAL OR STATE TEMPLATE (Please indicate which is being used.)
A117: Architecture & Construction | F117: Design/Pre-Construction-Architecture and Construction | N117: State
B132: 1. Improve the academic and technical skills of students participating in CTE programs by strengthening the academic and CTE components of such programs through the integration of coherent and rigorous content aligned with challenging academic standards and relevant CTE programs to ensure learning in – i. the core academic subjects (as defined in Section 9101 of the Elementary and Secondary Education Act of 1965); and ii. career and technical education subjects.* 2. Provide students with strong experience in, and understanding of, all aspects of an industry.* 3. Ensure that students who participate in such CTE programs are taught to the same coherent and rigorous content aligned with challenging academic standards as are taught to all other students.* 4. Encourage CTE students at the secondary level to enroll in rigorous and challenging courses in core academic subjects (as defined in section 9101 of the Elementary and Secondary Education Act of 1965).* 5. May include the opportunity for secondary education students to participate in dual or concurrent enrollment programs or other ways to acquire postsecondary education credits/elements. 6. Must lead to a high school diploma and, if applicable, an industry certification/state licensure/occupational competency skill assessment at the secondary level and to an industry-recognized credential or certificate at the postsecondary level, or an associate or baccalaureate degree.*
B133: * Required
B136: School Division: | G136: =T('Certification and Assurances'!$A$10:$G$10) -> HENRICO COUNTY PUBLIC SCHOOLS | M136: Division Number: | P136: ='Certification and Assurances'!$I$10 -> 43
A138: CTEMS SCHEDULE 3 (Continued)
A139: Application for Local Career Cluster/Pathway Plans of Study
A140: 2017-2018 Plan
B142: Section 134(b)(3)(A): Describe how the school division plans to implement the new Plan of Study to comply with all components listed on previous page (Items 1-6) (Section 122(c)(1)(A).
B145: Course options are based on labor market needs and student interest. CTE teachers request to attend student IEP meetings so that competencies may be reviewed to determine if a student will be expected to meet all competencies. CTE teachers receive a copy of identified accommodations for individual students so that the teacher can address the needs for optimal learning. Teachers are offered staff development on differentiated instruction to assist them in meeting the needs of students. All CTE teachers are required to correlate their course competencies to the SOLs in order to foster success in the CTE 20classroom as well as in core courses. CTE options are integral in leading to a HS diploma and an industry certification and/or state license.
B151: School Division: | G151: =T('Certification and Assurances'!$A$10:$G$10) -> HENRICO COUNTY PUBLIC SCHOOLS | M151: Division Number: | P151: ='Certification and Assurances'!$I$10 -> 43
A154: CTEMS SCHEDULE 4
A155: Special Populations Report
A156: 2017-2018 Plan
B158: A. Identify the number of economically disadvantaged, disabled, limited English proficient (LEP)/English Language learners (ELL's), migrant, single-parent, nontraditional (underrepresented gender groups), and displaced-homemaker students eligible for services provided by your school division.
B161: Number of Economically Disadvantaged (including foster children) (Grades K-12) | D161: Number of Disabled (Grades K-12) | F161: Number of Limited English Proficient/ English Language Learners (Grades K-12) | H161: Number of Migrant Students (Grades K-12) | J161: Number of Single-parent (including single pregnant women) (Grades 7-12) | L161: Number of Non-traditional (under-represented gender groups) (Grades 7-12) | N161: Number of Displaced-home-makers (Grades 7-12)
B162: 20356 | D162: 6266 | F162: 3381 | H162: 0 | J162: 0 | L162: 1693 | N162: 0
B164: B. Section 134 (b)(8)(A): Describe how you will annually review career and technical education programs, and identify and adopt strategies to overcome barriers that result in lowering rates of access to and lowering success in the programs, for special populations.
B166: CTE certification, licensure, and SOL test results are reviewed annually to identify patterns of success and areas of concern. All IEP/504 plans for exceptional education students are followed, address the student's participation in CTE courses including strategies for student success on industry or licensure certifications; IEP accommodations are also provided. Teachers participate in staff develpment related to differentiated instruction and providing accommodations to assist them in meeting the needs of students with disabilities.
B169: School Division: | G169: =T('Certification and Assurances'!$A$10:$G$10) -> HENRICO COUNTY PUBLIC SCHOOLS | M169: Division Number: | P169: ='Certification and Assurances'!$I$10 -> 43
A171: CTEMS SCHEDULE 4 (continued)
A172: Special Populations Report
A173: 2017-2018 Plan
B175: C. Section 134 (b)(8)(B): Describe how you will annually provide programs designed to enable the special populations to meet the state adjusted levels of performance.
B177: Course options are based on industry needs and student interests. Special population students are included in CTE programs through differentiation of instruction, adaptation of IEP accommodations, and tailored remediation plans. Additional CTE programs are offered during the school year specifically for special needs populations and CTE summer programs are designed to include a diverse population of students.
B180: D. Section 134 (b)(9): Describe how individuals who are members of special populations will not be discriminated against on the basis of their status as members of the special populations.
B182: Student course requests are honored based upon course availability. Students with disabilities are not discriminated against due to their participation in an exceptional education program. Accommodations are implemented when necessary to guarantee that students with diasbilities are afforded the same opportunities as students who are not members of the special populations. The application process for CTE Technical Centers is designed to provide equity for all student populations.
B190: School Division: | G190: =T('Certification and Assurances'!$A$10:$G$10) -> HENRICO COUNTY PUBLIC SCHOOLS | M190: Division Number: | P190: ='Certification and Assurances'!$I$10 -> 43
A192: CTEMS SCHEDULE 4 (continued)
A193: Special Populations Report
A194: 2017-2018 Plan
B196: E. Section 134(b)(8)(C) and (b)(10): Indicate below the activities/services your school division provides to prepare special populations, including single parents and displaced homemakers, for high-skill, high-wage, or high-demand occupations that will lead to self-sufficiency, including promoting preparation for non-traditional fields.
A198: SERVICES PROVIDED | C198: DISADVANTAGED | E198: DISABLED | G198: LEP | I198: MIGRANT | K198: SINGLE-PARENTS | M198: NON-TRADITIONAL | O198: DISPLACED HOME-MAKERS
A199: Supplemental basic academic instruction | C199: X | E199: X | G199: X | M199: X
A200: Supplemental social growth activities | C200: X | E200: X | G200: X | M200: X
A201: High-interest reading materials for struggling readers | C201: X | E201: X | G201: X | M201: X
A202: Instructional or teacher aides | C202: X | E202: X | G202: X | M202: X
A203: Mentoring programs | C203: X | E203: X | G203: X | M203: X
A204: Systematic tutoring | C204: X | E204: X | G204: X | M204: X
A205: Career and technical assessment | C205: X | E205: X | G205: X | M205: X
A206: Career counseling | C206: X | E206: X | G206: X | M206: X
A207: Transportation for work experience | E207: X
A208: Student Apprenticeship | C208: X | E208: X | G208: X | M208: X
A209: Work-study programs | C209: X | E209: X | G209: X | M209: X
A210: Coop education | C210: X | E210: X | G210: X | M210: X
A211: Job placement and follow-up | C211: X | E211: X | G211: X
A212: Job-coach and job-transition services
A213: Work-site visitation | C213: X | E213: X | G213: X | M213: X
A214: CT student organizations | C214: X | E214: X | G214: X | M214: X
A215: Field trips | C215: X | E215: X | G215: X | M215: X
A216: Child-care
A217: Special transportation
A218: Special seminars for fathers, teens, etc.
A219: Other: (specify)
A220: Please indicate if non-federal funds, in whole or in part, are used to support any of the above services. | C220: X | E220: X | G220: X | I220: X | K220: X | M220: X
B222: School Division: | G222: =T('Certification and Assurances'!$A$10:$G$10) -> HENRICO COUNTY PUBLIC SCHOOLS | M222: Division Number: | P222: ='Certification and Assurances'!$I$10 -> 43
A224: CTEMS SCHEDULE 5
A225: Strengthen/Improve Academic and Technical Skills
A226: 2017-2018 Plan
B228: Section 134(b)(3)(B,D,E): Please follow the directions below to show how you strengthen/improve the academic and technical skills of students participating in career and technical education programs.
B230: Directions For each of your Perkins supported programs, place an X by each activity that applies to that program and that is intended to improve the academic and technical skills of students participating in that program. For example, if “Using academic/career and technical team teaching” is designed to improve the academic and technical skills of students in Agriculture, place an X in the field marked “Using academic/career and technical team teaching” under Agriculture.
B232: ACTIVITIES | I232: DIVISION PROGRAMS
I233: AGRICULTURAL EDUCATION | J233: BUSINESS & INFORMATION TECHNOLOGY | K233: CAREER CONNECTIONS | L233: FAMILY AND CONSUMER SCIENCES | M233: HEALTH AND MEDICAL SCIENCES | N233: MARKETING | O233: TECHNOLOGY EDUCATION | P233: TRADE & INDUSTRIAL EDUCATION
B234: a. Integrating academics with career and technical education programs to ensure learning in the core academic and career and technical subjects | I234: X | J234: X | K234: X | L234: X | M234: X | N234: X | O234: X | P234: X
B235: b. Providing a coherent sequence of courses to ensure learning in the core academic and career and technical subjects | I235: X | J235: X | K235: X | L235: X | M235: X | N235: X | O235: X | P235: X
B236: c. Developing and implementing academic and career and technical collaborative lesson plans | I236: X | J236: X | K236: X | L236: X | M236: X | N236: X | O236: X | P236: X
B237: d. Implementing academic/career and technical team teaching | I237: X | J237: X | K237: X | L237: X | M237: X | N237: X | O237: X | P237: X
B238: e. Providing dual credit options | J238: X | M238: X | O238: X | P238: X
B239: f. Providing joint academic/career and technical instructional assignments | I239: X | J239: X | K239: X | L239: X | M239: X | N239: X | O239: X | P239: X
B240: g. Planning for and participating in joint academic/career and technical field trips to business/industry | I240: X | J240: X | K240: X | L240: X | M240: X | N240: X | O240: X | P240: X
B241: h. Providing a senior research project with academic and career and technical education components | J241: X | L241: X | M241: X | N241: X | O241: X
B242: i. Other (specify)
B244: School Division: | G244: =T('Certification and Assurances'!$A$10:$G$10) -> HENRICO COUNTY PUBLIC SCHOOLS | M244: Division Number: | P244: ='Certification and Assurances'!$I$10 -> 43
A246: CTEMS SCHEDULE 5 (Continued)
A247: Strengthen/Improve Academic and Technical Skills
A248: 2017-2018 Plan
B250: Section 134(b)(3)(B,D,E): Describe how the school division will improve the academic and technical skills of students participating in career an technical education programs by strengthening the academic and career and technical education components of such programs through the integration of coherent and rigorous content aligned with challenging academic standards and relevant career and tecnical programs to ensure learning in the core academic subjects (as defined in Section 9101 of the Elementary and Secondary Education Act of 1965); and career and technical education subjects; ensure that students who participate in such acareer and technical education programs are taught to the same coherent and reigorous content aligned with challenging academic standards as are taught to all other students; and encourage career and technical education students at the secondary level to enroll in rigorous and challenging courses in core academic subjects (as as defined in Section 9101 of the Elementary and Secondary Education Act of 1965).
B253: All CTE course offerings are aligned with the SOLs in addition to the CTE competencies that are required. Certification testing takes place in all completer CTE courses. All SOL and certification testing results are shared with teachers and administrators showing strengths and weaknesses so that a plan of improvement can be developed and monitored and provide for student remediation if necessary. Test question banks are created in Exam View Pro and School Space with the appropriate supporting data; STEM model is used to inprove science and mathematics performance in CTE courses; CTE competencies match related SOLs; completer surveys are reviewed and adjustments made to the curriculum when necessary; CTE teachers use task/compentency lists, student compentency records, and accompanying materials for the course from VERSO; industry leaders share updated requirements for employment as part of the CTE Business Council and Henrico Co. Vocational/Technical Education Foundation.
B257: School Division: | G257: =T('Certification and Assurances'!$A$10:$G$10) -> HENRICO COUNTY PUBLIC SCHOOLS | M257: Division Number: | P257: ='Certification and Assurances'!$I$10 -> 43
A259: CTEMS SCHEDULE 6
A260: All Aspects of Industry
A261: 2017-2018 Plan
B263: Section 134(b)(3)(C): Please follow the directions below to show how the school division will provide students with strong experience in, and understanding of, all aspects of an industry.
B265: Directions For each of your Perkins supported programs, place an X in the field for every activity that applies to that program and provides students with experience in and understanding of all aspects of an industry.
B267: ACTIVITIES | I267: DIVISION PROGRAMS
I268: AGRICULTURAL EDUCATION | J268: BUSINESS & INFORMATION TECHNOLOGY | K268: CAREER CONNECTIONS | L268: FAMILY AND CONSUMER SCIENCES | M268: HEALTH AND MEDICAL SCIENCES | N268: MARKETING | O268: TECHNOLOGY EDUCATION | P268: TRADE & INDUSTRIAL EDUCATION
B269: a. CTE curriculum frameworks reviewed by career/technical advisory committee to ensure that the local curriculum provides students with experience in and understanding of all aspects of an industry | I269: X | J269: X | K269: X | L269: X | M269: X | N269: X | O269: X | P269: X
B270: b. Work-site experiences provided
B271: Clinical Experience | M271: X
B272: Cooperative Education | I272: X | J272: X | L272: X | M272: X | N272: X | P272: X
B273: Internship | I273: X | J273: X | L273: X | M273: X | N273: X | O273: X | P273: X
B274: Job Shadowing | I274: X | J274: X | M274: X
B275: Mentorship | I275: X | J275: X | K275: X | L275: X | M275: X | N275: X | O275: X | P275: X
B276: Service Learning | L276: X | M276: X
B277: Student Apprenticeship | I277: X | P277: X
B278: c. Participation of Business/Industry Reps
B279: Mentoring opportunities provided | I279: X | J279: X | K279: X | L279: X | M279: X | N279: X | O279: X | P279: X
B280: Shadowing opportunities provided | I280: X | J280: X | K280: X | L280: X | M280: X | N280: X | O280: X | P280: X
B281: Business/industry tours | I281: X | J281: X | K281: X | L281: X | M281: X | N281: X | O281: X | P281: X
B282: Class presentations | I282: X | J282: X | L282: X | M282: X | N282: X | O282: X | P282: X
B283: Program Evaluation | I283: X | J283: X | K283: X | L283: X | M283: X | N283: X | O283: X | P283: X
B284: Other Specify:
B287: School Division: | G287: =T('Certification and Assurances'!$A$10:$G$10) -> HENRICO COUNTY PUBLIC SCHOOLS | M287: Division Number: | P287: ='Certification and Assurances'!$I$10 -> 43
A289: CTEMS SCHEDULE 6 (Continued)
A290: All Aspects of Industry
A291: 2017-2018 Plan
B293: Section 134(b)(3)(C): Describe how the school division will provide students with strong experiences in, and understanding of, all aspects of an industry.
B295: Due to the strong Business Council and numerous business partnerships developed by the Henrico Co. CTE department, students enrolled in CTE classes experience a wide variety of experiences in all aspects of an industry. The CTE department has a strong belief that real life experiences are extremely valuable and are provided throughout a student's participation in CTE classes. Such real life experiences include, but are not limited to: the Summer Building Trades program, CNA and LPN on-site training through nursing home partnerships and Bon Secours Hospitals, the Henrico Co. house building project, College and Career Night, CTE bus which provides vocational activities throughout the county to middle and high school level students, interviews and resume reviews provided by community employers, student competitions, etc.
B299: School Division: | G299: =T('Certification and Assurances'!$A$10:$G$10) -> HENRICO COUNTY PUBLIC SCHOOLS | M299: Division Number: | P299: ='Certification and Assurances'!$I$10 -> 43
A301: CTEMS SCHEDULE 7
A302: Technology in Career and Technical Education
A303: 2017-2018 Plan
B305: Section 135(b)(4 and 7): Please follow the directions below to show how the school division will develop, improve, or expand the use of technology in career and technical education.
B307: Directions For each of your Perkins supported programs, place an X in the field for any activity you will use in that program to develop, improve, or expand the use of technology.
B309: ACTIVITIES | I309: DIVISION PROGRAMS
I310: AGRICULTURAL EDUCATION | J310: BUSINESS & INFORMATION TECHNOLOGY | K310: CAREER CONNECTIONS | L310: FAMILY AND CONSUMER SCIENCES | M310: HEALTH AND MEDICAL SCIENCES | N310: MARKETING | O310: TECHNOLOGY EDUCATION | P310: TRADE & INDUSTRIAL EDUCATION
B311: a. Train career and technical personnel to use state-of-the-art technology, which may include distance/virtual learning. | I311: X | J311: X | K311: X | L311: X | M311: X | N311: X | O311: X | P311: X
B312: b. Provide students with the academic and career and technical skills that lead to entry into high-tech and communications fields. | I312: X | J312: X | K312: X | L312: X | M312: X | N312: X | O312: X | P312: X
B313: c. Work with high-tech industries to offer volunteer internship, mentoring, shadowing, and/or cooperative education experience(s). | I313: X | J313: X | K313: X | L313: X | M313: X | N313: X | O313: X | P313: X
B314: d. Provide technology applications in classroom instruction (including computer applications). | I314: X | J314: X | K314: X | L314: X | M314: X | N314: X | O314: X | P314: X
B315: e. Verify that instructional personnel demonstrate proficiency in Virginia Technology Standards. | J315: X | K315: X | L315: X | M315: X | N315: X | O315: X | P315: X
B316: f. Other (specify)
B321: School Division: | G321: =T('Certification and Assurances'!$A$10:$G$10) -> HENRICO COUNTY PUBLIC SCHOOLS | M321: Division Number: | P321: ='Certification and Assurances'!$I$10 -> 43
A323: CTEMS SCHEDULE 7 (Continued)
A324: Technology in Career and Technical Education
A325: 2017-2018 Plan
B327: Section 135(b)(4 and 7): Describe how the school division will develop, improve, or expand the use of technology in career and technical education.
... 304 more rows

Sheet Prefills (hidden)
A1: Name | B1: Code | D1: check X | F1: GroupID | H1: Years | J1: SL | L1: Cluster_Areas | N1: Pathways | P1: Use_of_Funds | Q1: FSL | S1: i. Agricultural Education | W1: 1000 - Personal Services | Z1: Original | AB1: 1S1-Reading
A2: ACCOMACK COUNTY PUBLIC SCHOOLS | B2: 1 | D2: X | F2: P | H2: 2007-2008 | J2: State | L2: Agriculture, Food, & Natural Resources | N2: Food Products and Processing Systems-Agriculture, Food and Natural Resources | P2: R1A--Strengthen skills of students through the integration of academics with career and technical education programs through a coherent sequence of courses, such as career and technical programs of study described in the section 122(c)(1)(A), to ensure learning in the core academic subjects (as defined in section 9101 of the Elementary and Secondary Education Act of 1965). | Q2: FED | S2: ii. Business and Information Technology | W2: 2000 - Employee Benefits | Z2: Revision | AB2: 1S1-Reading-Special Populations
A3: ALBEMARLE COUNTY PUBLIC SCHOOLS | B3: 2 | F3: S | H3: 2008-2009 | J3: Local | L3: Arts, A/V Technology & Communications | N3: Plant Systems-Agriculture, Food and Natural Resources | P3: R1B--Strengthen skills of students through the integration of academics with career and technical education programs through a coherent sequence of courses, such as career and technical programs of study described in the section 122(c)(1)(A), to ensure learning in career and technical education subjects. | Q3: ST | S3: iii. Career Connections | W3: 3000 - Purchased Services | Z3: Amendment | AB3: 1S1-Mathematics
A4: ALEXANDRIA CITY PUBLIC SCHOOLS | B4: 101 | F4: T | H4: 2009-2010 | L4: Education & Training | N4: Animal Systems-Agriculture, Food and Natural Resources | P4: R2--Link career and technical education at the secondary level and career and technical education at the postsecondary level, including by offering the relevant elements of not less than 1 career and technical program of study. | Q4: LOC | S4: iv. Family and Consumer Sciences | W4: 4000 - Internal Services | AB4: 1S1-Mathematics-Special Populations
A5: ALLEGHANY COUNTY PUBLIC SCHOOLS | B5: 3 | F5: L | H5: 2010-2011 | L5: Government & Public Administration | N5: Power, Structural and Technical Systems-Agriculture, Food and Natural Resources | P5: R3--Provide students with strong experience in and understanding of all aspects of an industry, which may include work-based learning experiences. | S5: v. Health and Medical Sciences | W5: 5000 - Other Charges | AB5: 2S1A-Student Competency Rate
A6: AMELIA COUNTY PUBLIC SCHOOLS | B6: 4 | F6: W | H6: 2011-2012 | L6: Hospitality & Tourism | N6: Natural Resources Systems-Agriculture, Food and Natural Resources | P6: R4A--Develop, improve, or expand the use of technology in career and technical education, which may include training of career and technical education teachers, faculty, and administrators to use technology, which may include distance learning. | S6: vi. Marketing | W6: 8000 – Capital Outlay/Equipment | AB6: 2S1A-Student Competency Rate-Special Populations
A7: AMELIA-NOTTOWAY VO-TECH CENTER | B7: 311 | F7: B&I | H7: 2012-2013 | L7: Information Technology | N7: Environmental Service Systems-Agriculture, Food and Natural Resources | P7: R4B--Develop, improve, or expand the use of technology in career and technical education, which may include providing career and technical education students with the academic and career and technical skills (including the mathematics and science knowledge that provides a strong basis for such skills) that lead to entry into the technology fields. | S7: vii. Technology Education | AB7: 2S1B-Completers Participating in Credentialing Tests
A8: AMHERST COUNTY PUBLIC SCHOOLS | B8: 5 | F8: CC | H8: 2013-2014 | L8: Manufacturing | N8: Agribusiness Systems-Agriculture, Food and Natural Resources | P8: R4C--Develop, improve, or expand the use of technology in career and technical education, which may include encouraging schools to collaborate with technology industries to offer voluntary internships and mentoring programs, including programs that improve the mathematics and science knowledge of students. | S8: viii. Trade and Industrial Education | AB8: 2S1B-Completers Participating in Credentialing Tests-Special Populations
A9: APPOMATTOX COUNTY PUBLIC SCHOOLS | B9: 6 | F9: SP | H9: 2014-2015 | L9: Science, Technology, Engineering, & Mathematics | N9: Design/Pre-Construction-Architecture and Construction | P9: R5Ai--Provide sustained professional development programs that are consistent with section 122 to secondary and postsecondary teachers, faculty, administrators, and career guidance and academic counselors who are involved in integrated career and technical education programs, including in-service and preservice training on effective integration and use of challenging academic and career and technical education provided jointly with academic teachers to the extent practicable. | S9: ix. All | AB9: 2S1C-Test Takers Passing Credentialing Tests
A10: ARLINGTON COUNTY PUBLIC SCHOOLS | B10: 7 | F10: O | H10: 2015-2016 | L10: Architecture & Construction | N10: Construction-Architecture and Construction | P10: R5Aii--Provide sustained professional development programs that are consistent with section 122 to secondary and postsecondary teachers, faculty, administrators, and career guidance and academic counselors who are involved in integrated career and technical education programs, including in-service and preservice training on effective teaching skills based on research that includes promising practices. | AB10: 2S1C-Test Takers Passing Credentialing Tests-Special Populations
A11: AUGUSTA COUNTY PUBLIC SCHOOLS | B11: 8 | F11: YesorNo | H11: 2016-2017 | L11: Business Management & Administration | N11: Maintenance/Operations-Architecture and Construction | P11: R5Aiii--Provide sustained professional development programs that are consistent with section 122 to secondary and postsecondary teachers, faculty, administrators, and career guidance and academic counselors who are involved in integrated career and technical education programs, including in-service and preservice training on effective practices to improve parental and community involvement. | AB11: 2S1D-Completers Passing Credential Test Rate
A12: BATH COUNTY PUBLIC SCHOOLS | B12: 9 | F12: Yes | L12: Finance | N12: Audio and Video Technology and Film-Arts, Audio/Video Technology and Communications | P12: R5Aiv--Provide sustained professional development programs that are consistent with section 122 to secondary and postsecondary teachers, faculty, administrators, and career guidance and academic counselors who are involved in integrated career and technical education programs, including in-service and preservice training on effective use of scientifically based research and data to improve instruction. | AB12: 2S1D-Completers Passing Credential Test Rate-Special Populations
A13: BEDFORD CITY PUBLIC SCHOOLS | B13: 140 | F13: No | L13: Health Science | N13: Printing Technology-Arts, Audio/Video Technology and Communications | P13: R5B--Provide sustained professional development programs that are consistent with section 122 to secondary and postsecondary teachers, faculty, administrators, and career guidance and academic counselors who are involved in integrated career and technical education programs, including support of education programs for teachers of career and technical education in public schools and other public school personnel who are involved in the direct delivery of educational services to career and technical education students, to ensure that such teachers and personnel stay current with all aspects of an industry. | AB13: 2S1E-College and Career Readiness
A14: BEDFORD COUNTY PUBLIC SCHOOLS | B14: 10 | L14: Human Services | N14: Visual Arts-Arts, Audio/Video Technology and Communications | P14: R5C--Provide sustained professional development programs that are consistent with section 122 to secondary and postsecondary teachers, faculty, administrators, and career guidance and academic counselors who are involved in integrated career and technical education programs, including internship programs that provide relevant business experience. | AB14: 2S1E-College and Career Readiness-Special Populations
A15: BLAND COUNTY PUBLIC SCHOOLS | B15: 11 | L15: Law, Public Safety, Corrections, & Security | N15: Performing Arts-Arts, Audio/Video Technology and Communications | P15: R5D--Provide sustained professional development programs that are consistent with section 122 to secondary and postsecondary teachers, faculty, administrators, and career guidance and academic counselors who are involved in integrated career and technical education programs, including programs designed to train teachers specifically in the effective use and application of technology to improve instruction. | AB15: 3S1-Secondary School Completion
A16: BOTETOURT COUNTY PUBLIC SCHOOLS | B16: 12 | L16: Marketing | N16: Journalism and Broadcasting-Arts, Audio/Video Technology and Communications | P16: R6--Develop and implement evaluations of the career and technical education programs carried out with funds under this title, including an assessment of how the needs of special populations are being met. | AB16: 4S1-Graduation Rate
A17: BRIDGING COMMUNITIES REG. CTE CENTER | B17: 313 | L17: Transportation, Distribution, & Logistics | N17: Telecommunications-Arts, Audio/Video Technology and Communications | P17: R7--Initiate, improve, expand, and modernize quality career and technical education programs, including relevant technology. | AB17: 5S1-Secondary Placement Rate
A18: BRISTOL CITY PUBLIC SCHOOLS | B18: 102 | N18: General Management-Business Management and Administration | P18: R8--Provide services and activities that are of sufficient size, scope, and quality to be effective. | AB18: 5S1-Secondary Placement Rate-Special Populations
A19: BRUNSWICK COUNTY PUBLIC SCHOOLS | B19: 13 | N19: Business Information Management-Business Management and Administration | P19: R9--Provide activities to prepare special populations, including single parents and displaced homemakers who are enrolled in career and technical education programs, for high skill, high wage, or high demand occupations that will lead to self-sufficiency. | AB19: 5S1-Program Completer Response Rate
A20: BUCHANAN COUNTY PUBLIC SCHOOLS | B20: 14 | N20: Human Resources Management-Business Management and Administration | P20: P1--To involve parents, businesses, and labor organizations as appropriate, in the design, implementation, and evaluation of career and technical education programs authorized under this title, including establishing effective programs and procedures to enable informed and effective participation in such programs. | AB20: 6S1-Nontraditional Enrollment
A21: BUCKINGHAM COUNTY PUBLIC SCHOOLS | B21: 15 | N21: Operations management-Business Management and Administration | P21: P2A--To provide career guidance and academic counseling, which may include information described in section 118, for students participating in career and technical education programs that improves graduation rates and provides information on postsecondary and career options, including baccalaureate degree programs, for secondary students, which activities may include the use of graduation and career plans. | AB21: 6S2-Nontraditional Completion
A22: BUENA VISTA CITY PUBLIC SCHOOLS | B22: 103 | N22: Administrative Support-Business Management and Administration | P22: P2B--To provide career guidance and academic counseling, which may include information described in section 118, for students participating in career and technical education programs that provides assistance for postsecondary students, including for adult students who are changing careers or updating skills.
A23: CAMPBELL COUNTY PUBLIC SCHOOLS | B23: 16 | N23: Administration and Administrative Support-Education and Training | P23: P3A--For local education and business (including small business) partnerships, including for work-related experiences for students, such as internships, cooperative education, school-based enterprises, entrepreneurship, and job shadowing that are related to career and technical education programs.
A24: CAROLINE COUNTY PUBLIC SCHOOLS | B24: 17 | N24: Professional Support Services-Education and Training | P24: P3B--For local education and business (including small business) partnerships, including for adjunct faculty arrangements for qualified industry professionals.
A25: CARROLL COUNTY PUBLIC SCHOOLS | B25: 18 | N25: Teaching/Training-Education and Training | P25: P3C--For local education and business (including small business) partnerships, including for industry experience for teachers and faculty.
A26: CHARLES CITY COUNTY PUBLIC SCHOOLS | B26: 19 | N26: Securities and Investments-Finance | P26: P4--To provide programs for special populations.
A27: CHARLOTTE COUNTY PUBLIC SCHOOLS | B27: 20 | N27: Business Finance-Finance | P27: P5--To assist career and technical student organizations.
A28: CHARLOTTESVILLE CITY PUBLIC SCHOOLS | B28: 104 | N28: Accounting-Finance | P28: P6--For mentoring and support services.
A29: CHARLOTTESVILLE-ALBEMARLE VTC | B29: 301 | N29: Insurance-Finance | P29: P7--For leasing, purchasing, upgrading or adapting equipment, including instructional aids and publications (including support for library resources) designed to strengthen and support academic and technical skill achievement.
A30: CHESAPEAKE CITY PUBLIC SCHOOLS | B30: 136 | N30: Banking Services-Finance | P30: P8--For teacher preparation programs that address the integration of academic and career and technical education and that assist individuals who are interested in becoming career and technical education teachers and faculty, including individuals with experience in business and industry.
A31: CHESTERFIELD COUNTY PUBLIC SCHOOLS | B31: 21 | N31: Governance-Government and Public Administration | P31: P9--To develop and expand accessible postsecondary program offerings at times and in formats that are accessible for students, including working students, including through the use of distance education.
A32: CLARKE COUNTY PUBLIC SCHOOLS | B32: 22 | N32: National Security-Government and Public Administration | P32: P10A--To develop initiatives that facilitate the transition of sub-baccalaureate career and technical education students into baccalaureate degree programs, including articulation agreements between sub-baccalaureate degree granting career and technical education postsecondary educational institutions and baccalaureate degree granting postsecondary educational institutions.
A33: CLIFTON FORGE CITY | B33: 105 | N33: Foreign Service-Government and Public Administration | P33: P10B--To develop initiatives that facilitate the transition of sub-baccalaureate career and technical education students into baccalaureate degree programs, including postsecondary dual and concurrent enrollment programs.
A34: COLONIAL BEACH TOWN PUBLIC SCHOOLS | B34: 202 | N34: Planning-Government and Public Administration | P34: P10C--To develop initiatives that facilitate the transition of sub-baccalaureate career and technical education students into baccalaureate degree programs, including academic and financial aid counseling for sub-baccalaureate career and technical education students that informs the students of the opportunities for pursuing a baccalaureate degree and advises the students on how to meet any transfer requirements.
A35: COLONIAL HEIGHTS CITY PUBLIC SCHOOLS | B35: 106 | N35: Revenue and Taxation-Government and Public Administration | P35: P10DI--To develop initiatives that facilitate the transition of sub-baccalaureate career and technical education students into baccalaureate degree programs, including other initiatives to encourage the pursuit of a baccalaureate degree.
A36: COVINGTON CITY PUBLIC SCHOOLS | B36: 107 | N36: Regulation-Government and Public Administration | P36: P10DII--To develop initiatives that facilitate the transition of sub-baccalaureate career and technical education students into baccalaureate degree programs, including other initiatives to overcome barriers to enrollment in and completion of baccalaureate degree programs, including geographic and other barriers affecting rural students and special populations.
A37: CRAIG COUNTY PUBLIC SCHOOLS | B37: 23 | N37: Public Management and Administration-Government and Public Administration | P37: P11--To provide activities to support entrepreneurship education and training.
A38: CULPEPER COUNTY PUBLIC SCHOOLS | B38: 24 | N38: Therapeutic Services-Health Science | P38: P12--For improving or developing new career and technical education courses, including the development of new proposed career and technical programs of study for consideration by the eligible agency and courses that prepare individuals academically and technically for high skill, high wage, or high demand occupations and dual or concurrent enrollment opportunities by which career and technical education students at the secondary level could obtain postsecondary credit to count towards an associate or baccalaureate degree.
A39: CUMBERLAND COUNTY PUBLIC SCHOOLS | B39: 25 | N39: Diagnostic Services-Health Science | P39: P13--To develop and support small, personalized career-themed learning communities.
A40: DANVILLE CITY PUBLIC SCHOOLS | B40: 108 | N40: Health Informatics-Health Science | P40: P14--To provide support for family and consumer sciences programs.
A41: DEPARTMENT OF CORRECTIONS | B41: 930 | N41: Support Services-Health Science | P41: P15--To provide career and technical education programs for adults and school dropouts to complete the secondary school education, or upgrade the technical skills, of the adults and school dropouts.
A42: DEPARTMENT OF JUVENILE JUSTICE | B42: 917 | N42: Biotechnology Research and Development-Health Science | P42: P16--To provide assistance to individuals who have participated in services and activities under this Act in continuing their education or training or finding an appropriate job, such as through referral to the system established under section 121 of Public Law 105-220 (29 U.S.C. 2801 et seq.).
A43: DICKENSON COUNTY PUBLIC SCHOOLS | B43: 26 | N43: Restaurants and Food/Beverage Services-Hospitality and Tourism | P43: P17--To support training and activities (such as mentoring and outreach) in non-traditional fields.
A44: DINWIDDIE COUNTY PUBLIC SCHOOLS | B44: 27 | N44: Lodging-Hospitality and Tourism | P44: P18--To provide support for training programs in automotive technologies.
A45: EMPORIA CITY PUBLIC SCHOOLS | B45: 138 | N45: Travel and Tourism-Hospitality and Tourism | P45: P19A--To pool a portion of such funds with a portion of funds available to not less than 1 other eligible recipient for innovative initiatives, which may include improving the initial preparation and professional development of career and technical education teachers, faculty, administrators, and counselors.
A46: ESSEX COUNTY PUBLIC SCHOOLS | B46: 28 | N46: Recreation, Amusements and Attractions-Hospitality and Tourism | P46: P19Bi--To pool a portion of such funds with a portion of funds available to not less than 1 other eligible recipient for innovative initiatives, which may include establishing, enhancing, or supporting systems for accountability data collection under this Act.
A47: FAIRFAX CITY PUBLIC SCHOOLS | B47: 134 | N47: Early Childhood Development and Services-Human Services | P47: P19Bii--To pool a portion of such funds with a portion of funds available to not less than 1 other eligible recipient for innovative initiatives, which may include establishing, enhancing, or supporting systems for reporting data under this Act.
A48: FAIRFAX COUNTY PUBLIC SCHOOLS | B48: 29 | N48: Counseling and Mental Health Services-Human Services | P48: P19C--To pool a portion of such funds with a portion of funds available to not less than 1 other eligible recipient for innovative initiatives, which may include implementing career and technical programs of study described in section 122(c)(1)(A).
A49: FALLS CHURCH CITY PUBLIC SCHOOLS | B49: 109 | N49: Family and Community Services-Human Services | P49: P19D--To pool a portion of such funds with a portion of funds available to not less than 1 other eligible recipient for innovative initiatives, which may include implementing technical assessments.
A50: FAUQUIER COUNTY PUBLIC SCHOOLS | B50: 30 | N50: Personal Care Services-Human Services | P50: P20--To support other career and technical education activities that are consistent with the purpose of this Act.
A51: FLOYD COUNTY PUBLIC SCHOOLS | B51: 31 | N51: Consumer Services-Human Services
A52: FLUVANNA COUNTY PUBLIC SCHOOLS | B52: 32 | N52: Network Systems-Information Technology
A53: FRANKLIN CITY PUBLIC SCHOOLS | B53: 135 | N53: Information Support and Services-Information Technology
A54: FRANKLIN COUNTY PUBLIC SCHOOLS | B54: 33 | N54: Web and Digital Communications-Information Technology
A55: FREDERICK COUNTY PUBLIC SCHOOLS | B55: 34 | N55: Programming and Software Development-Information Technology
A56: FREDERICKSBURG CITY PUBLIC SCHOOLS | B56: 110 | N56: Correction Services-Law, Public Safety, Corrections and Security
A57: GALAX CITY PUBLIC SCHOOLS | B57: 111 | N57: Emergency and Fire Management Services-Law, Public Safety, Corrections and Security
A58: GILES COUNTY PUBLIC SCHOOLS | B58: 35 | N58: Security and Protective Services-Law, Public Safety, Corrections and Security
A59: GLOUCESTER COUNTY PUBLIC SCHOOLS | B59: 36 | N59: Law Enforcement Services-Law, Public Safety, Corrections and Security
A60: GOOCHLAND COUNTY PUBLIC SCHOOLS | B60: 37 | N60: Legal Services-Law, Public Safety, Corrections and Security
A61: GRAYSON COUNTY PUBLIC SCHOOLS | B61: 38 | N61: Production-Manufacturing
A62: GREENE COUNTY PUBLIC SCHOOLS | B62: 39 | N62: Manufacturing Production Process Development-Manufacturing
A63: GREENSVILLE COUNTY PUBLIC SCHOOLS | B63: 40 | N63: Maintenance, Installation and Repair-Manufacturing
A64: HALIFAX COUNTY PUBLIC SCHOOLS | B64: 41 | N64: Quality Assurance-Manufacturing
A65: HAMPTON CITY PUBLIC SCHOOLS | B65: 112 | N65: Logistics and Inventory Control-Manufacturing
A66: HANOVER COUNTY PUBLIC SCHOOLS | B66: 42 | N66: Health, Safety and Environmental Assurance-Manufacturing
A67: HARRISONBURG CITY PUBLIC SCHOOLS | B67: 113 | N67: Marketing Management-Marketing
A68: HENRICO COUNTY PUBLIC SCHOOLS | B68: 43 | N68: Professional Sales-Marketing
A69: HENRY COUNTY PUBLIC SCHOOLS | B69: 44 | N69: Merchandising-Marketing
A70: HIGHLAND COUNTY PUBLIC SCHOOLS | B70: 45 | N70: Marketing Communications-Marketing
A71: HOPEWELL CITY PUBLIC SCHOOLS | B71: 114 | N71: Marketing Research-Marketing
A72: ISLE OF WIGHT COUNTY PUBLIC SCHOOLS | B72: 46 | N72: Engineering and Technology-Science, Technology, Engineering and Mathematics
A73: JACKSON RIVER VOCATIONAL CENTER | B73: 302 | N73: Science and Math-Science, Technology, Engineering and Mathematics
A74: JAMES CITY COUNTY PUBLIC SCHOOLS | B74: 47 | N74: Transportation Operations-Transportation, Distribution and Logistics
A75: KING AND QUEEN COUNTY PUBLIC SCHOOLS | B75: 49 | N75: Logistics Planning and Management Services-Transportation, Distribution and Logistics
A76: KING GEORGE COUNTY PUBLIC SCHOOLS | B76: 48 | N76: Warehousing and Distribution Center Operations-Transportation, Distribution and Logistics
A77: KING WILLIAM COUNTY PUBLIC SCHOOLS | B77: 50 | N77: Facility and Mobile Equipment Maintenance-Transportation, Distribution and Logistics
A78: LANCASTER COUNTY PUBLIC SCHOOLS | B78: 51 | N78: Transportation Systems/Infrastructure Planning, Ma-Transportation, Distribution and Logistics
A79: LEE COUNTY PUBLIC SCHOOLS | B79: 52 | N79: Health, Safety and Environmental Management-Transportation, Distribution and Logistics
A80: LEXINGTON CITY PUBLIC SCHOOLS | B80: 137 | N80: Sales and Service-Transportation, Distribution and Logistics
A81: LOUDOUN COUNTY PUBLIC SCHOOLS | B81: 53
A82: LOUISA COUNTY PUBLIC SCHOOLS | B82: 54
A83: LUNENBURG COUNTY PUBLIC SCHOOLS | B83: 55
A84: LYNCHBURG CITY PUBLIC SCHOOLS | B84: 115
A85: MADISON COUNTY PUBLIC SCHOOLS | B85: 56
A86: MANASSAS CITY PUBLIC SCHOOLS | B86: 143
A87: MANASSAS PARK CITY PUBLIC SCHOOLS | B87: 144
A88: MARTINSVILLE CITY PUBLIC SCHOOLS | B88: 116
A89: MASSANUTTEN VOCATIONAL CENTER | B89: 304
A90: MATHEWS COUNTY PUBLIC SCHOOLS | B90: 57
A91: MECKLENBURG COUNTY PUBLIC SCHOOLS | B91: 58
A92: MIDDLESEX COUNTY PUBLIC SCHOOLS | B92: 59
A93: MONTGOMERY COUNTY PUBLIC SCHOOLS | B93: 60
A94: NELSON COUNTY PUBLIC SCHOOLS | B94: 62
A95: NEW HORIZONS TECHNICAL CENTER | B95: 307
A96: NEW KENT COUNTY PUBLIC SCHOOLS | B96: 63
A97: NEWPORT NEWS CITY PUBLIC SCHOOLS | B97: 117
A98: NORFOLK CITY PUBLIC SCHOOLS | B98: 118
A99: NORTHAMPTON COUNTY PUBLIC SCHOOLS | B99: 65
A100: NORTHERN NECK VOCATIONAL CENTER | B100: 310
A101: NORTHUMBERLAND COUNTY PUBLIC SCHOOLS | B101: 66
A102: NORTON CITY PUBLIC SCHOOLS | B102: 119
A103: NOTTOWAY COUNTY PUBLIC SCHOOLS | B103: 67
A104: ORANGE COUNTY PUBLIC SCHOOLS | B104: 68
A105: P.D. PRUDEN VOC-TECH CENTER | B105: 308
A106: PAGE COUNTY PUBLIC SCHOOLS | B106: 69
A107: PATRICK COUNTY PUBLIC SCHOOLS | B107: 70
A108: PETERSBURG CITY PUBLIC SCHOOLS | B108: 120
A109: PITTSYLVANIA COUNTY PUBLIC SCHOOLS | B109: 71
A110: POQUOSON CITY PUBLIC SCHOOLS | B110: 142
A111: PORTSMOUTH CITY PUBLIC SCHOOLS | B111: 121
A112: POWHATAN COUNTY PUBLIC SCHOOLS | B112: 72
A113: PRINCE EDWARD COUNTY PUBLIC SCHOOLS | B113: 73
A114: PRINCE GEORGE COUNTY PUBLIC SCHOOLS | B114: 74
A115: PRINCE WILLIAM COUNTY PUBLIC SCHOOLS | B115: 75
A116: PULASKI COUNTY PUBLIC SCHOOLS | B116: 77
A117: RADFORD CITY PUBLIC SCHOOLS | B117: 122
A118: RAPPAHANNOCK COUNTY PUBLIC SCHOOLS | B118: 78
A119: RICHMOND CITY PUBLIC SCHOOLS | B119: 123
A120: RICHMOND COUNTY PUBLIC SCHOOLS | B120: 79
A121: ROANOKE CITY PUBLIC SCHOOLS | B121: 124
A122: ROANOKE COUNTY PUBLIC SCHOOLS | B122: 80
A123: ROCKBRIDGE COUNTY PUBLIC SCHOOLS | B123: 81
A124: ROCKINGHAM COUNTY PUBLIC SCHOOLS | B124: 82
A125: ROWANTY VOCATIONAL-TECH CENTER | B125: 309
A126: RUSSELL COUNTY PUBLIC SCHOOLS | B126: 83
A127: SALEM CITY PUBLIC SCHOOLS | B127: 139
A128: SCOTT COUNTY PUBLIC SCHOOLS | B128: 84
A129: SHENANDOAH COUNTY PUBLIC SCHOOLS | B129: 85
A130: SMYTH COUNTY PUBLIC SCHOOLS | B130: 86
A131: SOUTHAMPTON COUNTY PUBLIC SCHOOLS | B131: 87
A132: SPOTSYLVANIA COUNTY PUBLIC SCHOOLS | B132: 88
A133: STAFFORD COUNTY PUBLIC SCHOOLS | B133: 89
A134: STAUNTON CITY PUBLIC SCHOOLS | B134: 126
A135: SUFFOLK CITY PUBLIC SCHOOLS | B135: 127
A136: SURRY COUNTY PUBLIC SCHOOLS | B136: 90
A137: SUSSEX COUNTY PUBLIC SCHOOLS | B137: 91
A138: TAZEWELL COUNTY PUBLIC SCHOOLS | B138: 92
A139: VALLEY VOCATIONAL-TECHNICAL CENTER | B139: 306
A140: VIRGINIA BEACH CITY PUBLIC SCHOOLS | B140: 128
A141: VIRGINIA COMMUNITY COLLEGE SYSTEMS | B141: 854
A142: WARREN COUNTY PUBLIC SCHOOLS | B142: 93
A143: WASHINGTON COUNTY PUBLIC SCHOOLS | B143: 94
A144: WAYNESBORO CITY PUBLIC SCHOOLS | B144: 130
A145: WEST POINT TOWN PUBLIC SCHOOLS | B145: 207
A146: WESTMORELAND COUNTY PUBLIC SCHOOLS | B146: 95
A147: WILLIAMSBURG CITY PUBLIC SCHOOLS | B147: 131
A148: WINCHESTER CITY PUBLIC SCHOOLS | B148: 132
A149: WISE COUNTY PUBLIC SCHOOLS | B149: 96
A150: WYTHE COUNTY PUBLIC SCHOOLS | B150: 97
A151: YORK COUNTY PUBLIC SCHOOLS | B151: 98

Sheet Sheet1 (hidden)
B1: Agriculture, Food and Natural Resources
A2: Agriculture, Food and Natural Resources | B2: o Food Products and Processing Systems | I2: =A2&B2 -> Agriculture, Food and Natural Resourceso Food Products and Processing Systems | R2: =MID(B2,9,50)&"-"&A2 -> Food Products and Processing Systems-Agriculture, Food and Natural Resources
A3: Agriculture, Food and Natural Resources | B3: o Plant Systems | I3: =A3&B3 -> Agriculture, Food and Natural Resourceso Plant Systems | R3: =MID(B3,9,50)&"-"&A3 -> Plant Systems-Agriculture, Food and Natural Resources
A4: Agriculture, Food and Natural Resources | B4: o Animal Systems | I4: Agriculture, Food and Natural Resourceso Animal Systems | R4: Animal Systems-Agriculture, Food and Natural Resources
A5: Agriculture, Food and Natural Resources | B5: o Power, Structural and Technical Systems | I5: Agriculture, Food and Natural Resourceso Power, Structural and Technical Systems | R5: Power, Structural and Technical Systems-Agriculture, Food and Natural Resources
A6: Agriculture, Food and Natural Resources | B6: o Natural Resources Systems | I6: Agriculture, Food and Natural Resourceso Natural Resources Systems | R6: Natural Resources Systems-Agriculture, Food and Natural Resources
A7: Agriculture, Food and Natural Resources | B7: o Environmental Service Systems | I7: Agriculture, Food and Natural Resourceso Environmental Service Systems | R7: Environmental Service Systems-Agriculture, Food and Natural Resources
A8: Agriculture, Food and Natural Resources | B8: o Agribusiness Systems | I8: Agriculture, Food and Natural Resourceso Agribusiness Systems | R8: Agribusiness Systems-Agriculture, Food and Natural Resources
A9: Architecture and Construction | B9: o Design/Pre-Construction | I9: Architecture and Constructiono Design/Pre-Construction | R9: Design/Pre-Construction-Architecture and Construction
A10: Architecture and Construction | B10: o Construction | I10: Architecture and Constructiono Construction | R10: Construction-Architecture and Construction
A11: Architecture and Construction | B11: o Maintenance/Operations | I11: Architecture and Constructiono Maintenance/Operations | R11: Maintenance/Operations-Architecture and Construction
A12: Arts, Audio/Video Technology and Communications | B12: o Audio and Video Technology and Film | I12: Arts, Audio/Video Technology and Communicationso Audio and Video Technology and Film | R12: Audio and Video Technology and Film-Arts, Audio/Video Technology and Communications
A13: Arts, Audio/Video Technology and Communications | B13: o Printing Technology | I13: Arts, Audio/Video Technology and Communicationso Printing Technology | R13: Printing Technology-Arts, Audio/Video Technology and Communications
A14: Arts, Audio/Video Technology and Communications | B14: o Visual Arts | I14: Arts, Audio/Video Technology and Communicationso Visual Arts | R14: Visual Arts-Arts, Audio/Video Technology and Communications
A15: Arts, Audio/Video Technology and Communications | B15: o Performing Arts | I15: Arts, Audio/Video Technology and Communicationso Performing Arts | R15: Performing Arts-Arts, Audio/Video Technology and Communications
A16: Arts, Audio/Video Technology and Communications | B16: o Journalism and Broadcasting | I16: Arts, Audio/Video Technology and Communicationso Journalism and Broadcasting | R16: Journalism and Broadcasting-Arts, Audio/Video Technology and Communications
A17: Arts, Audio/Video Technology and Communications | B17: o Telecommunications | I17: Arts, Audio/Video Technology and Communicationso Telecommunications | R17: Telecommunications-Arts, Audio/Video Technology and Communications
A18: Business Management and Administration | B18: o General Management | I18: Business Management and Administrationo General Management | R18: General Management-Business Management and Administration
A19: Business Management and Administration | B19: o Business Information Management | I19: Business Management and Administrationo Business Information Management | R19: Business Information Management-Business Management and Administration
A20: Business Management and Administration | B20: o Human Resources Management | I20: Business Management and Administrationo Human Resources Management | R20: Human Resources Management-Business Management and Administration
A21: Business Management and Administration | B21: o Operations management | I21: Business Management and Administrationo Operations management | R21: Operations management-Business Management and Administration
A22: Business Management and Administration | B22: o Administrative Support | I22: Business Management and Administrationo Administrative Support | R22: Administrative Support-Business Management and Administration
A23: Education and Training | B23: o Administration and Administrative Support | I23: Education and Trainingo Administration and Administrative Support | R23: Administration and Administrative Support-Education and Training
A24: Education and Training | B24: o Professional Support Services | I24: Education and Trainingo Professional Support Services | R24: Professional Support Services-Education and Training
A25: Education and Training | B25: o Teaching/Training | I25: Education and Trainingo Teaching/Training | R25: Teaching/Training-Education and Training
A26: Finance | B26: o Securities and Investments | I26: Financeo Securities and Investments | R26: Securities and Investments-Finance
A27: Finance | B27: o Business Finance | I27: Financeo Business Finance | R27: Business Finance-Finance
A28: Finance | B28: o Accounting | I28: Financeo Accounting | R28: Accounting-Finance
A29: Finance | B29: o Insurance | I29: Financeo Insurance | R29: Insurance-Finance
A30: Finance | B30: o Banking Services | I30: Financeo Banking Services | R30: Banking Services-Finance
A31: Government and Public Administration | B31: o Governance | I31: Government and Public Administrationo Governance | R31: Governance-Government and Public Administration
A32: Government and Public Administration | B32: o National Security | I32: Government and Public Administrationo National Security | R32: National Security-Government and Public Administration
A33: Government and Public Administration | B33: o Foreign Service | I33: Government and Public Administrationo Foreign Service | R33: Foreign Service-Government and Public Administration
A34: Government and Public Administration | B34: o Planning | I34: Government and Public Administrationo Planning | R34: Planning-Government and Public Administration
A35: Government and Public Administration | B35: o Revenue and Taxation | I35: Government and Public Administrationo Revenue and Taxation | R35: Revenue and Taxation-Government and Public Administration
A36: Government and Public Administration | B36: o Regulation | I36: Government and Public Administrationo Regulation | R36: Regulation-Government and Public Administration
A37: Government and Public Administration | B37: o Public Management and Administration | I37: Government and Public Administrationo Public Management and Administration | R37: Public Management and Administration-Government and Public Administration
A38: Health Science | B38: o Therapeutic Services | I38: Health Scienceo Therapeutic Services | R38: Therapeutic Services-Health Science
A39: Health Science | B39: o Diagnostic Services | I39: Health Scienceo Diagnostic Services | R39: Diagnostic Services-Health Science
A40: Health Science | B40: o Health Informatics | I40: Health Scienceo Health Informatics | R40: Health Informatics-Health Science
A41: Health Science | B41: o Support Services | I41: Health Scienceo Support Services | R41: Support Services-Health Science
A42: Health Science | B42: o Biotechnology Research and Development | I42: Health Scienceo Biotechnology Research and Development | R42: Biotechnology Research and Development-Health Science
A43: Hospitality and Tourism | B43: o Restaurants and Food/Beverage Services | I43: Hospitality and Tourismo Restaurants and Food/Beverage Services | R43: Restaurants and Food/Beverage Services-Hospitality and Tourism
A44: Hospitality and Tourism | B44: o Lodging | I44: Hospitality and Tourismo Lodging | R44: Lodging-Hospitality and Tourism
A45: Hospitality and Tourism | B45: o Travel and Tourism | I45: Hospitality and Tourismo Travel and Tourism | R45: Travel and Tourism-Hospitality and Tourism
A46: Hospitality and Tourism | B46: o Recreation, Amusements and Attractions | I46: Hospitality and Tourismo Recreation, Amusements and Attractions | R46: Recreation, Amusements and Attractions-Hospitality and Tourism
A47: Human Services | B47: o Early Childhood Development and Services | I47: Human Serviceso Early Childhood Development and Services | R47: Early Childhood Development and Services-Human Services
A48: Human Services | B48: o Counseling and Mental Health Services | I48: Human Serviceso Counseling and Mental Health Services | R48: Counseling and Mental Health Services-Human Services
A49: Human Services | B49: o Family and Community Services | I49: Human Serviceso Family and Community Services | R49: Family and Community Services-Human Services
A50: Human Services | B50: o Personal Care Services | I50: Human Serviceso Personal Care Services | R50: Personal Care Services-Human Services
A51: Human Services | B51: o Consumer Services | I51: Human Serviceso Consumer Services | R51: Consumer Services-Human Services
A52: Information Technology | B52: o Network Systems | I52: Information Technologyo Network Systems | R52: Network Systems-Information Technology
A53: Information Technology | B53: o Information Support and Services | I53: Information Technologyo Information Support and Services | R53: Information Support and Services-Information Technology
A54: Information Technology | B54: o Web and Digital Communications | I54: Information Technologyo Web and Digital Communications | R54: Web and Digital Communications-Information Technology
A55: Information Technology | B55: o Programming and Software Development | I55: Information Technologyo Programming and Software Development | R55: Programming and Software Development-Information Technology
A56: Law, Public Safety, Corrections and Security | B56: o Correction Services | I56: Law, Public Safety, Corrections and Securityo Correction Services | R56: Correction Services-Law, Public Safety, Corrections and Security
A57: Law, Public Safety, Corrections and Security | B57: o Emergency and Fire Management Services | I57: Law, Public Safety, Corrections and Securityo Emergency and Fire Management Services | R57: Emergency and Fire Management Services-Law, Public Safety, Corrections and Security
A58: Law, Public Safety, Corrections and Security | B58: o Security and Protective Services | I58: Law, Public Safety, Corrections and Securityo Security and Protective Services | R58: Security and Protective Services-Law, Public Safety, Corrections and Security
A59: Law, Public Safety, Corrections and Security | B59: o Law Enforcement Services | I59: Law, Public Safety, Corrections and Securityo Law Enforcement Services | R59: Law Enforcement Services-Law, Public Safety, Corrections and Security
A60: Law, Public Safety, Corrections and Security | B60: o Legal Services | I60: Law, Public Safety, Corrections and Securityo Legal Services | R60: Legal Services-Law, Public Safety, Corrections and Security
A61: Manufacturing | B61: o Production | I61: Manufacturingo Production | R61: Production-Manufacturing
A62: Manufacturing | B62: o Manufacturing Production Process Development | I62: Manufacturingo Manufacturing Production Process Development | R62: Manufacturing Production Process Development-Manufacturing
A63: Manufacturing | B63: o Maintenance, Installation and Repair | I63: Manufacturingo Maintenance, Installation and Repair | R63: Maintenance, Installation and Repair-Manufacturing
A64: Manufacturing | B64: o Quality Assurance | I64: Manufacturingo Quality Assurance | R64: Quality Assurance-Manufacturing
A65: Manufacturing | B65: o Logistics and Inventory Control | I65: Manufacturingo Logistics and Inventory Control | R65: Logistics and Inventory Control-Manufacturing
A66: Manufacturing | B66: o Health, Safety and Environmental Assurance | I66: Manufacturingo Health, Safety and Environmental Assurance | R66: Health, Safety and Environmental Assurance-Manufacturing
A67: Marketing | B67: o Marketing Management | I67: =A67&B67 -> Marketingo Marketing Management | R67: =MID(B67,9,50)&"-"&A67 -> Marketing Management-Marketing
A68: Marketing | B68: o Professional Sales | I68: Marketingo Professional Sales | R68: Professional Sales-Marketing
A69: Marketing | B69: o Merchandising | I69: Marketingo Merchandising | R69: Merchandising-Marketing
A70: Marketing | B70: o Marketing Communications | I70: Marketingo Marketing Communications | R70: Marketing Communications-Marketing
A71: Marketing | B71: o Marketing Research | I71: =A71&B71 -> Marketingo Marketing Research | R71: Marketing Research-Marketing
A72: Science, Technology, Engineering and Mathematics | B72: o Engineering and Technology | I72: Science, Technology, Engineering and Mathematicso Engineering and Technology | R72: Engineering and Technology-Science, Technology, Engineering and Mathematics
A73: Science, Technology, Engineering and Mathematics | B73: o Science and Math | I73: Science, Technology, Engineering and Mathematicso Science and Math | R73: Science and Math-Science, Technology, Engineering and Mathematics
A74: Transportation, Distribution and Logistics | B74: o Transportation Operations | I74: Transportation, Distribution and Logisticso Transportation Operations | R74: Transportation Operations-Transportation, Distribution and Logistics
A75: Transportation, Distribution and Logistics | B75: o Logistics Planning and Management Services | I75: Transportation, Distribution and Logisticso Logistics Planning and Management Services | R75: Logistics Planning and Management Services-Transportation, Distribution and Logistics
A76: Transportation, Distribution and Logistics | B76: o Warehousing and Distribution Center Operations | I76: Transportation, Distribution and Logisticso Warehousing and Distribution Center Operations | R76: Warehousing and Distribution Center Operations-Transportation, Distribution and Logistics
A77: Transportation, Distribution and Logistics | B77: o Facility and Mobile Equipment Maintenance | I77: Transportation, Distribution and Logisticso Facility and Mobile Equipment Maintenance | R77: Facility and Mobile Equipment Maintenance-Transportation, Distribution and Logistics
A78: Transportation, Distribution and Logistics | B78: o Transportation Systems/Infrastructure Planning, Management and Regulation | I78: Transportation, Distribution and Logisticso Transportation Systems/Infrastructure Planning, Management and Regulation | R78: Transportation Systems/Infrastructure Planning, Ma-Transportation, Distribution and Logistics
A79: Transportation, Distribution and Logistics | B79: o Health, Safety and Environmental Management | I79: Transportation, Distribution and Logisticso Health, Safety and Environmental Management | R79: Health, Safety and Environmental Management-Transportation, Distribution and Logistics
A80: Transportation, Distribution and Logistics | B80: o Sales and Service | I80: Transportation, Distribution and Logisticso Sales and Service | R80: Sales and Service-Transportation, Distribution and Logistics
B81: · PATHWAYS:
B83: CLUSTER:Architecture and Construction
B84: · PATHWAYS:
B86: CLUSTER:Arts, Audio/Video Technology and Communications
B87: · PATHWAYS:
B89: CLUSTER:Business Management and Administration
B90: · PATHWAYS:
B92: CLUSTER:Education and Training
B93: · PATHWAYS:
B95: CLUSTER:Finance
B96: · PATHWAYS:
B100: CLUSTER:Government and Public Administration
B101: · PATHWAYS:
B103: CLUSTER:Health Science
B104: · PATHWAYS:
B106: CLUSTER:Hospitality and Tourism
B107: · PATHWAYS:
B109: CLUSTER:Human Services
B110: · PATHWAYS:
B112: CLUSTER:Information Technology
B113: · PATHWAYS:
B115: CLUSTER:Law, Public Safety, Corrections and Security
B116: · PATHWAYS:
B119: CLUSTER:Manufacturing
B120: · PATHWAYS:
B122: CLUSTER:Marketing
B123: · PATHWAYS:
B125: CLUSTER:Science, Technology, Engineering and Mathematics
B126: · PATHWAYS:
B128: CLUSTER:Transportation, Distribution and Logistics
B129: · PATHWAYS:

Sheet Sheet2 (hidden)

Sheet Sheet3 (hidden)
A1: Academic Attainment
A2: Academic Attainment – Special Populations
A3: Technical Skills Attainment
A4: Technical Skills Attainment - Special Populations
A5: Secondary School Completion
A6: Student Graduation Rates
A7: Secondary Placement
A8: Secondary Placement – Special Populations
A9: Completer Response Rate
A10: Nontraditional Participants
A11: Nontraditional Completion

Sheet Sheet4 (hidden)
